Workbook

Sheet practices
A1: STUDENTS | B1: Zebrafish | C1: Theme selection | D1: Organization | E1: Active participation | F1: Teacher readiness | G1: Practice value | H1: Syllabus | I1: COMMENTS | J1: Restraint | K1: Theme selection | L1: Organization | M1: Active participation | N1: Teacher readiness | O1: Practice value | P1: Syllabus | Q1: COMMENTS | R1: Behaviour | S1: Theme selection | T1: Organization | U1: Active participation | V1: Teacher readiness | W1: Practice value | X1: Syllabus | Y1: COMMENTS | Z1: Min. inv. I. | AA1: Theme selection | AB1: Organization | AC1: Active participation | AD1: Teacher readiness | AE1: Practice value | AF1: Syllabus | AG1: COMMENTS | AH1: Anesthesia | AI1: Theme selection | AJ1: Organization | AK1: Active participation | AL1: Teacher readiness | AM1: Practice value | AN1: Syllabus | AO1: COMMENTS | AP1: Aseptic techniques | AQ1: Theme selection | AR1: Organization | AS1: Active participation | AT1: Teacher readiness | AU1: Practice value | AV1: Syllabus | AW1: COMMENTS | AX1: Suturing | AY1: Theme selection | AZ1: Organization | BA1: Active participation | BB1: Teacher readiness | BC1: Practice value | BD1: Syllabus | BE1: COMMENTS | BF1: Rat preparation | BG1: Theme selection | BH1: Organization | BI1: Active participation | BJ1: Teacher readiness | BK1: Practice value | BL1: Syllabus | BM1: COMMENTS | BN1: Minipig preparation | BO1: Theme selection | BP1: Organization | BQ1: Active participation | BR1: Teacher readiness | BS1: Practice value | BT1: Syllabus | BU1: COMMENTS | BV1: Langendorff | BW1: Theme selection | BX1: Organization | BY1: Active participation | BZ1: Teacher readiness | CA1: Practice value | CB1: Syllabus | CC1: COMMENTS
A2: Student 1 | B2: Biology and experimental practice of zebrafish (Rita Emilia Szabó, Dr. Tünde Tőkés, Dr. Marietta Poles) | C2: 4 | D2: 3 | E2: 4 | F2: 3 | G2: 4 | H2: 4 | J2: Handling, sexing and restraint of laboratory animals. (Dr. Gabriella Varga, Dr. Dániel Érces, Dr. Marietta Poles, Dr. József Kaszaki) | K2: 4 | L2: 4 | M2: 4 | N2: 4 | O2: 4 | P2: 4 | R2: Methods of investigating laboratory animals behaviour in practice. (Máté Fort Molnár, Diána Martos, Dr. Tünde Tőkés) | S2: 4 | T2: 4 | U2: 4 | V2: 4 | W2: 4 | X2: 4 | Z2: Minimally invasive procedures without anaesthesia: injections. Intravenous access with Braun catheters, infusions on phantoms. (Dr. Gabriella Varga, Dr. Dániel Érces, Dr. Petra Hartmann) | AA2: 5 | AB2: 3 | AC2: 3 | AD2: 3 | AE2: 4 | AF2: 3 | AH2: Minimally invasive procedures without anaesthesia, calculation of the dose, anesthesia of rodents, recognition and control of pain. Inhalation anaesthesia of rodents. Sampling methods under anaesthesia (Dr. Gabriella Varga, Dr. Dániel Érces, Dr. András Mészáros) | AI2: 5 | AJ2: 4 | AK2: 4 | AL2: 4 | AM2: 4 | AN2: 4 | AO2: Really interesting! More practice! | AP2: Practice in operating theatre I: aseptic techniques, working under sterile circumstances on dummies and phantoms (Dr. Dániel Érces, Dr. András Mészáros, Szilárd Szűcs) | AQ2: 5 | AR2: 4 | AS2: 3 | AT2: 3 | AU2: 4 | AV2: 4 | AX2: Practice in operating theatre II: basic surgical procedures, suturing, wound management on dummies and phantoms (Dr. Dániel Érces, Dr. András Mészáros, László Juhász) | AY2: 5 | AZ2: 5 | BA2: 5 | BB2: 5 | BC2: 5 | BD2: 5 | BE2: More time to practice the techniques! | BF2: Basic surgical procedures on anaesthetised rodents. In vivo monitoring of vital signs (Dr. Gabriella Varga, Dr. Dániel Érces, Dr. András Mészáros, Dr. Tünde Tőkés, Dr. Poles Marietta) | BG2: 4 | BH2: 4 | BI2: 4 | BJ2: 4 | BK2: 4 | BL2: 4 | BN2: Experiments on large animals: anaesthesia, instrumentation and non-invasive procedures for monitoring on minipigs (Dr. Dániel Érces, Dr. József Kaszaki, Szilárd Szűcs) | BO2: 4 | BP2: 4 | BQ2: 4 | BR2: 4 | BS2: 4 | BT2: 4 | BU2: Should have more time, should be described first the techniques, and then the student identify each one! | BV2: Alternatives to animal use 2. In vitro and ex vivo experimental techniques; tissue cultures and the Langendorff method (Dr. Tamás Csont, Dr. Csaba Csonka, Renáta Gáspár) | BW2: 4 | BX2: 4 | BY2: 4 | BZ2: 4 | CA2: 4 | CB2: 4
A3: Student 2 | C3: 4 | D3: 4 | E3: 5 | F3: 5 | G3: 5 | H3: 5 | K3: 5 | L3: 5 | M3: 5 | N3: 5 | O3: 5 | P3: 5 | S3: 5 | T3: 5 | U3: 5 | V3: 5 | W3: 5 | X3: 5 | AA3: 4 | AB3: 4 | AC3: 5 | AD3: 5 | AE3: 4 | AF3: 5 | AG3: Very useful practice. It was a great experience. | AI3: 4 | AJ3: 4 | AK3: 5 | AL3: 5 | AM3: 5 | AN3: 5 | AQ3: 4 | AR3: 4 | AS3: 5 | AT3: 5 | AU3: 5 | AV3: 5 | AW3: It was a great experience. | AY3: 4 | AZ3: 4 | BA3: 5 | BB3: 5 | BC3: 5 | BD3: 5 | BE3: This one also was very useful. | BG3: 5 | BH3: 5 | BI3: 5 | BJ3: 5 | BK3: 5 | BL3: 5 | BM3: The bast part of the course!! | BO3: 5 | BP3: 5 | BQ3: 5 | BR3: 5 | BS3: 5 | BT3: 5 | BW3: 5 | BX3: 5 | BY3: 5 | BZ3: 5 | CA3: 4 | CB3: 5
A4: Student 3 | C4: 5 | D4: 5 | E4: 4 | F4: 4 | G4: 5 | H4: 4 | I4: The microscopic practice was very good. | K4: 5 | L4: 5 | M4: 5 | N4: 5 | O4: 5 | P4: 4 | Q4: Excellent handling & animal practice. | S4: 5 | T4: 5 | U4: 5 | V4: 5 | W4: 5 | X4: 4 | AA4: 3 | AB4: 4 | AC4: 4 | AD4: 4 | AE4: 5 | AF4: 5 | AI4: 5 | AJ4: 5 | AK4: 4 | AL4: 4 | AM4: 4 | AN4: 4 | AO4: Some repetitive information with previous parts about anesthesia. | AQ4: 4 | AR4: 5 | AS4: 4 | AT4: 4 | AU4: 5 | AV4: 5 | AY4: 5 | AZ4: 5 | BA4: 5 | BB4: 5 | BC4: 4 | BD4: 4 | BE4: Too much unneeded information in my opinion. | BG4: 5 | BH4: 4 | BI4: 4 | BJ4: 5 | BK4: 5 | BL4: 5 | BM4: The demonstrators were very well prepared. | BO4: 5 | BP4: 5 | BQ4: 5 | BR4: 5 | BS4: 5 | BT4: 5 | BW4: 4 | BX4: 3 | BY4: 3 | BZ4: 3 | CA4: 4 | CB4: 4 | CC4: The demonstrators could be more well prepared for this training.
A5: Student 4 | C5: 5 | D5: 4 | E5: 5 | F5: 5 | G5: 4 | I5: The course was very well organized, maybe the division of the embryo states might help the full comprehension. | K5: 5 | L5: 5 | M5: 5 | N5: 5 | O5: 5 | S5: 5 | T5: 5 | U5: 5 | V5: 5 | W5: 3 | Y5: Conduction of behavioral test (especially Y maze and rotarod) should not be carried out in such environment. | AA5: 5 | AB5: 5 | AC5: 5 | AD5: 5 | AE5: 5 | AF5: 5 | AI5: 5 | AJ5: 5 | AK5: 5 | AL5: 5 | AM5: 3 | AN5: 4 | AQ5: 5 | AR5: 5 | AS5: 5 | AT5: 5 | AU5: 5 | AV5: 4 | AY5: 5 | AZ5: 5 | BA5: 5 | BB5: 5 | BC5: 5 | BD5: 4 | BG5: 5 | BH5: 5 | BI5: 5 | BJ5: 5 | BK5: 5 | BL5: 5 | BM5: Excellent! | BO5: 5 | BP5: 5 | BQ5: 4 | BR5: 5 | BS5: 3 | BT5: 5 | BU5: Obviously we cannot practice on pigs, but a deeper explanation of the argument (such as repetition of anesthesia effect, vital parameters) would be better. | BW5: 5 | BX5: 5 | BY5: 5 | BZ5: 5 | CA5: 4 | CB5: 4
A6: Student 5 | C6: 4 | D6: 4 | E6: 4 | F6: 5 | G6: 4 | H6: 5 | K6: 5 | L6: 5 | M6: 5 | N6: 5 | O6: 5 | P6: 5 | S6: 3 | T6: 4 | U6: 2 | V6: 5 | W6: 2 | X6: 5 | AA6: 5 | AB6: 5 | AC6: 5 | AD6: 5 | AE6: 5 | AF6: 5 | AI6: 5 | AJ6: 5 | AK6: 5 | AL6: 5 | AM6: 5 | AN6: 5 | AQ6: 5 | AR6: 5 | AS6: 5 | AT6: 5 | AU6: 5 | AV6: 5 | AY6: 5 | AZ6: 5 | BA6: 5 | BB6: 5 | BC6: 5 | BD6: 5 | BG6: 5 | BH6: 5 | BI6: 5 | BJ6: 5 | BK6: 5 | BL6: 5 | BO6: 5 | BP6: 5 | BQ6: 2 | BR6: 5 | BS6: 4 | BT6: 5 | BW6: 5 | BX6: 5 | BY6: 5 | BZ6: 5 | CA6: 5 | CB6: 5
A7: Student 6 | C7: 4 | D7: 4 | E7: 5 | F7: 5 | G7: 5 | H7: 5 | K7: 5 | L7: 5 | M7: 5 | N7: 5 | O7: 5 | P7: 5 | S7: 5 | T7: 5 | U7: 5 | V7: 5 | W7: 5 | X7: 5 | AA7: 5 | AB7: 5 | AC7: 5 | AD7: 5 | AE7: 5 | AF7: 5 | AG7: Excellent!! | AI7: 5 | AJ7: 5 | AK7: 5 | AL7: 5 | AM7: 5 | AN7: 5 | AO7: Excellent. Enjoyed very much! | AQ7: 5 | AR7: 5 | AS7: 5 | AT7: 5 | AU7: 5 | AV7: 5 | AW7: Extraordinary!! Excellent experiences!! | AY7: 5 | AZ7: 5 | BA7: 5 | BB7: 5 | BC7: 5 | BD7: 5 | BE7: Extraordinary!! Excellent experiences!! | BG7: 5 | BH7: 5 | BI7: 5 | BJ7: 5 | BK7: 5 | BL7: 5 | BM7: Enjoyable! | BO7: 3 | BP7: 4 | BQ7: 4 | BR7: 5 | BS7: 4 | BT7: 5 | BU7: Microcirculation measurement was interesting. Could focus on small animals!!
A8: Student 7 | C8: 4 | D8: 5 | E8: 4 | F8: 4 | G8: 5 | H8: 4 | I8: Less time. | K8: 5 | L8: 5 | M8: 5 | N8: 5 | O8: 5 | P8: 5 | Q8: I learnt more in handling. Really appreciable. | S8: 5 | T8: 5 | U8: 5 | V8: 5 | W8: 5 | X8: 5 | Y8: I learnt more in handling. Really appreciable. | AA8: 5 | AB8: 5 | AC8: 5 | AD8: 5 | AE8: 5 | AF8: 5 | AG8: Appreciable. | AI8: 5 | AJ8: 5 | AK8: 5 | AL8: 5 | AM8: 5 | AN8: 5 | AO8: Good knowledge. | AQ8: 5 | AR8: 5 | AS8: 5 | AT8: 5 | AU8: 5 | AV8: 5 | AY8: 5 | AZ8: 5 | BA8: 5 | BB8: 5 | BC8: 5 | BD8: 5 | BG8: 5 | BH8: 5 | BI8: 5 | BJ8: 5 | BK8: 5 | BL8: 5 | BO8: 5 | BP8: 5 | BQ8: 5 | BR8: 5 | BS8: 5 | BT8: 5 | BW8: 5 | BX8: 5 | BY8: 5 | BZ8: 5 | CA8: 5 | CB8: 5 | CC8: Researcher took more effort to explain, really interesting.
A9: Student 8 | C9: 4 | D9: 4 | E9: 4 | F9: 4 | G9: 3 | K9: 5 | L9: 5 | M9: 5 | N9: 5 | O9: 4 | S9: 5 | T9: 4 | U9: 5 | V9: 5 | W9: 4 | AA9: 5 | AB9: 5 | AC9: 4 | AD9: 4 | AE9: 5 | AF9: 5 | AI9: 5 | AJ9: 4 | AK9: 4 | AL9: 5 | AM9: 5 | AN9: 4 | AQ9: 4 | AR9: 4 | AS9: 4 | AT9: 4 | AU9: 5 | AV9: 4 | AY9: 5 | AZ9: 5 | BA9: 5 | BB9: 5 | BC9: 5 | BD9: 4 | BG9: 5 | BH9: 5 | BI9: 5 | BJ9: 5 | BK9: 5 | BL9: 4 | BO9: 5 | BP9: 5 | BQ9: 5 | BR9: 5 | BS9: 5 | BT9: 4 | BW9: 5 | BX9: 5 | BY9: 5 | BZ9: 5 | CA9: 5 | CB9: 4
A10: Student 9 | C10: 5 | D10: 4 | E10: 5 | F10: 5 | G10: 5 | K10: 5 | L10: 5 | M10: 5 | N10: 5 | O10: 5 | S10: 5 | T10: 5 | U10: 3 | V10: 5 | W10: 5 | AA10: 5 | AB10: 5 | AC10: 5 | AD10: 5 | AE10: 5 | AI10: 5 | AJ10: 5 | AK10: 5 | AL10: 5 | AM10: 5 | AQ10: 5 | AR10: 5 | AS10: 5 | AT10: 5 | AU10: 5 | AY10: 5 | AZ10: 5 | BA10: 5 | BB10: 5 | BC10: 5 | BG10: 5 | BH10: 5 | BI10: 5 | BJ10: 5 | BK10: 5 | BO10: 5 | BP10: 5 | BQ10: 5 | BR10: 5 | BS10: 5 | BW10: 5 | BX10: 5 | BY10: 5 | BZ10: 5 | CA10: 5
A11: Student 10 | C11: 5 | D11: 5 | E11: 5 | F11: 5 | G11: 5 | I11: For people who never worked with zebrafish the practice was very well organized and focus on different interesting points. | K11: 4 | L11: 4 | M11: 4 | N11: 4 | O11: 4 | S11: 4 | T11: 4 | U11: 4 | V11: 4 | W11: 4 | AA11: 5 | AB11: 5 | AC11: 5 | AD11: 5 | AE11: 5 | AI11: 4 | AJ11: 4 | AK11: 4 | AL11: 4 | AM11: 4 | AN11: 4 | AO11: Just one suggestion: the practice should be performed requiring more calm environment from the students. The procedures are already stressful for the animals and some time they forget that working in a calm environment (as much as possible) is neccesary for the welfare of the animals. Also, reinforce the concept to the students that taking the animals from the tail has to be a temporary procedure - the animal (rat) cannot be transport back and forth hanging at the tail. | AQ11: 4 | AR11: 4 | AS11: 4 | AT11: 4 | AU11: 4 | AV11: 4 | AY11: 4 | AZ11: 4 | BA11: 4 | BB11: 4 | BC11: 4 | BD11: 4 | BG11: 4 | BH11: 4 | BI11: 4 | BJ11: 4 | BK11: 4 | BL11: 4 | BM11: I suggest to make more sectors (?) the carotic and jugular incannulation was out of aims but it was a good practice after all. For the animal welfare I would suggest that the anesthetized rats have to be euthanized before open the abdomen and the torax cavity because of: 1) these are the last procedures so the animals are at the end of anesthesia effect; 2) the death due opening of the chest (to practise the suture for example) and the consequent lost of negative pressure is not a humane killing. | BO11: 4 | BP11: 4 | BQ11: 4 | BR11: 4 | BS11: 4 | BT11: 4 | BW11: 5 | BX11: 5 | BY11: 5 | BZ11: 5 | CA11: 5
A12: Student 11 | C12: 2 | D12: 2 | E12: 2 | F12: 3 | G12: 3 | H12: 2 | K12: 5 | L12: 5 | M12: 5 | N12: 5 | O12: 5 | P12: 4 | S12: 5 | T12: 4 | U12: 5 | V12: 4 | W12: 5 | X12: 4 | AA12: 5 | AB12: 5 | AC12: 5 | AD12: 5 | AE12: 5 | AF12: 5 | AI12: 5 | AJ12: 5 | AK12: 5 | AL12: 5 | AM12: 5 | AN12: 5 | AQ12: 5 | AR12: 5 | AS12: 5 | AT12: 5 | AU12: 5 | AV12: 5 | AY12: 5 | AZ12: 5 | BA12: 5 | BB12: 5 | BC12: 5 | BD12: 5 | BG12: 5 | BH12: 5 | BI12: 5 | BJ12: 5 | BK12: 5 | BL12: 5 | BO12: 3 | BP12: 4 | BQ12: 3 | BR12: 5 | BS12: 2 | BT12: 5 | BW12: 5 | BX12: 5 | BY12: 5 | BZ12: 5 | CA12: 5 | CB12: 5
A13: Student 12 | C13: 3 | D13: 3 | E13: 3 | F13: 3 | G13: 3 | H13: 3 | K13: 4 | L13: 4 | M13: 3 | N13: 3 | O13: 3 | P13: 3 | S13: 3 | T13: 3 | U13: 3 | V13: 3 | W13: 3 | X13: 3 | AA13: 4 | AB13: 4 | AC13: 3 | AD13: 3 | AE13: 3 | AF13: 3 | AI13: 4 | AJ13: 4 | AK13: 4 | AL13: 4 | AM13: 5 | AN13: 4 | AQ13: 4 | AR13: 4 | AS13: 4 | AT13: 4 | AU13: 4 | AV13: 3 | AY13: 4 | AZ13: 4 | BA13: 4 | BB13: 3 | BC13: 3 | BD13: 4 | BG13: 3 | BH13: 3 | BI13: 3 | BJ13: 3 | BK13: 3 | BL13: 3 | BO13: 3 | BP13: 3 | BQ13: 3 | BR13: 3 | BS13: 3 | BT13: 3 | BW13: 3 | BX13: 3 | BY13: 3 | BZ13: 3 | CA13: 3 | CB13: 3
A14: AVERAGE | C14: =AVERAGE(C2:C13) -> 4.083333333 | D14: 3.916666667 | E14: 4.166666667 | F14: 4.25 | G14: 4.25 | H14: 4 | K14: =AVERAGE(K2:K13) -> 4.75 | L14: 4.75 | M14: 4.666666667 | N14: 4.666666667 | O14: 4.583333333 | P14: 4.375 | S14: =AVERAGE(S2:S13) -> 4.5 | T14: 4.416666667 | U14: 4.25 | V14: 4.583333333 | W14: 4.166666667 | X14: 4.375 | AA14: =AVERAGE(AA2:AA13) -> 4.666666667 | AB14: 4.583333333 | AC14: 4.5 | AD14: 4.5 | AE14: 4.666666667 | AF14: 4.6 | AI14: =AVERAGE(AI2:AI13) -> 4.75 | AJ14: 4.583333333 | AK14: 4.583333333 | AL14: 4.666666667 | AM14: 4.583333333 | AN14: 4.454545455 | AQ14: =AVERAGE(AQ2:AQ13) -> 4.583333333 | AR14: 4.583333333 | AS14: 4.5 | AT14: 4.5 | AU14: 4.75 | AV14: 4.454545455 | AY14: =AVERAGE(AY2:AY13) -> 4.75 | AZ14: 4.75 | BA14: 4.833333333 | BB14: 4.75 | BC14: 4.666666667 | BD14: 4.545454545 | BG14: =AVERAGE(BG2:BG13) -> 4.666666667 | BH14: 4.583333333 | BI14: 4.583333333 | BJ14: 4.666666667 | BK14: 4.666666667 | BL14: 4.545454545 | BO14: =AVERAGE(BO2:BO13) -> 4.333333333 | BP14: 4.5 | BQ14: 4.083333333 | BR14: 4.666666667 | BS14: 4.083333333 | BT14: 4.545454545 | BW14: =AVERAGE(BW2:BW13) -> 4.636363636 | BX14: 4.545454545 | BY14: 4.545454545 | BZ14: 4.545454545 | CA14: 4.454545455 | CB14: 4.333333333
C15: =AVERAGE(C2:H13) -> 4.117647059 | K15: =AVERAGE(K2:P13) -> 4.647058824 | S15: =AVERAGE(S2:X13) -> 4.382352941 | AA15: =AVERAGE(AA2:AF13) -> 4.585714286 | AI15: =AVERAGE(AI2:AN13) -> 4.605633803 | AQ15: =AVERAGE(AQ2:AV13) -> 4.563380282 | AY15: =AVERAGE(AY2:BD13) -> 4.718309859 | BG15: =AVERAGE(BG2:BL13) -> 4.61971831 | BO15: =AVERAGE(BO2:BT13) -> 4.366197183 | BW15: =AVERAGE(BW2:CB13) -> 4.515625

Sheet lectures and seminars
A1: STUDENTS | B1: History | C1: Subject-specific expertise | D1: Style of performance | E1: Choice of subject | F1: Handouts | G1: COMMENTS | H1: Ethics | I1: Subject-specific expertise | J1: Style of performance | K1: Choice of subject | L1: Handouts | M1: COMMENTS | N1: Legislation | O1: Subject-specific expertise | P1: Style of performance | Q1: Choice of subject | R1: Handouts | S1: COMMENTS | T1: Extrapolation | U1: Subject-specific expertise | V1: Style of performance | W1: Choice of subject | X1: Handouts | Y1: COMMENTS | Z1: 3Rs | AA1: Subject-specific expertise | AB1: Style of performance | AC1: Choice of subject | AD1: Handouts | AE1: COMMENTS | AF1: Licensing | AG1: Subject-specific expertise | AH1: Style of performance | AI1: Choice of subject | AJ1: Handouts | AK1: COMMENTS | AL1: Statistics | AM1: Subject-specific expertise | AN1: Style of performance | AO1: Choice of subject | AP1: Handouts | AQ1: COMMENTS | AR1: Biology of small animals | AS1: Subject-specific expertise | AT1: Style of performance | AU1: Choice of subject | AV1: Handouts | AW1: COMMENTS | AX1: Biology of large animals | AY1: Subject-specific expertise | AZ1: Style of performance | BA1: Choice of subject | BB1: Handouts | BC1: COMMENTS | BD1: Behaviour | BE1: Subject-specific expertise | BF1: Style of performance | BG1: Choice of subject | BH1: Handouts | BI1: COMMENTS | BJ1: Handling | BK1: Subject-specific expertise | BL1: Style of performance | BM1: Choice of subject | BN1: Handouts | BO1: COMMENTS | BP1: Zebrafish | BQ1: Subject-specific expertise | BR1: Style of performance | BS1: Choice of subject | BT1: Handouts | BU1: COMMENTS | BV1: Gnotobiology | BW1: Subject-specific expertise | BX1: Style of performance | BY1: Choice of subject | BZ1: Handouts | CA1: COMMENTS | CB1: Inbred outbred | CC1: Subject-specific expertise | CD1: Style of performance | CE1: Choice of subject | CF1: Handouts | CG1: COMMENTS | CH1: Care and housing | CI1: Subject-specific expertise | CJ1: Style of performance | CK1: Choice of subject | CL1: Handouts | CM1: COMMENTS | CN1: Housing | CO1: Subject-specific expertise | CP1: Style of performance | CQ1: Choice of subject | CR1: Handouts | CS1: COMMENTS | CT1: Transgenic AND pain | CU1: Subject-specific expertise | CV1: Style of performance | CW1: Choice of subject | CX1: Handouts | CY1: COMMENTS | CZ1: Anaesthesia and analgesia | DA1: Subject-specific expertise | DB1: Style of performance | DC1: Choice of subject | DD1: Handouts | DE1: COMMENTS | DF1: Advanced anaesthesia | DG1: Subject-specific expertise | DH1: Style of performance | DI1: Choice of subject | DJ1: Handouts | DK1: COMMENTS | DL1: Safety | DM1: Subject-specific expertise | DN1: Style of performance | DO1: Choice of subject | DP1: Handouts | DQ1: COMMENTS | DR1: Surgical procedures | DS1: Subject-specific expertise | DT1: Style of performance | DU1: Choice of subject | DV1: Handouts | DW1: COMMENTS | DX1: Monitoring | DY1: Subject-specific expertise | DZ1: Style of performance | EA1: Choice of subject | EB1: Handouts | EC1: COMMENTS | ED1: Statistical evaluation | EE1: Subject-specific expertise | EF1: Style of performance | EG1: Choice of subject | EH1: Handouts | EI1: COMMENTS | EJ1: Alternative methods | EK1: Subject-specific expertise | EL1: Style of performance | EM1: Choice of subject | EN1: Handouts | EO1: COMMENTS | EP1: Ex vivo | EQ1: Subject-specific expertise | ER1: Style of performance | ES1: Choice of subject | ET1: Handouts | EU1: COMMENTS | EV1: Complex statistical analysis | EW1: Subject-specific expertise | EX1: Style of performance | EY1: Choice of subject | EZ1: Handouts | FA1: COMMENTS | FB1: Interpretation of results | FC1: Subject-specific expertise | FD1: Style of performance | FE1: Choice of subject | FF1: Handouts | FG1: COMMENTS | FH1: Translation | FI1: Subject-specific expertise | FJ1: Style of performance | FK1: Choice of subject | FL1: Handouts | FM1: COMMENTS | FN1: Licensing in practice | FO1: Subject-specific expertise | FP1: Style of performance | FQ1: Choice of subject | FR1: Handouts | FS1: COMMENTS | FT1: OTHER COMMENTS
A2: Student 1 | B2: Introduction to the science of laboratory animals, use of animals for different areas of research. The procedure of modelling. History of animal experimentation (Prof. Dr. Mihály Boros) | C2: 4 | D2: 4 | E2: 4 | F2: 4 | H2: Ethical aspects and animal welfare (historical background, arguments for and against the use of animals for scientific purposes, moral aspects, ethical committees) (Prof. Dr Mihály Boros) | I2: 5 | J2: 5 | K2: 5 | L2: 5 | M2: Too much rules about hungary! Should be more about EU! | N2: European and Hungarian law, legislation and the Three Rs (Reduction, Replacement, Refinement), ethical permission & license. (Dr. József Kaszaki) | O2: 4 | P2: 5 | Q2: 4 | R2: 5 | T2: Extrapolation of animal data to human. Model examples: inflammation and circulatory shock (Prof. Dr. Zoltán Rakonczay) | U2: 4 | V2: 3 | W2: 3 | X2: 4 | Z2: Legislation in practice 1: animal welfare and the 3 Rs (Dr. József Kaszaki) | AA2: 4 | AB2: 3 | AC2: 3 | AD2: 4 | AF2: Legislation in practice 2: licensing of animal experiments (Dr. József Kaszaki) | AG2: 4 | AH2: 4 | AI2: 4 | AJ2: 4 | AL2: Basics of statistics - sample size estimation (Dr. Ferenc Rárósi) | AM2: 4 | AN2: 3 | AO2: 3 | AP2: 3 | AR2: Biology of laboratory animals I. Species-specific biology of small laboratory animals. Rodent anatomy, physiology, behaviour. (Dr. Tünde Tőkés) | AS2: 4 | AT2: 5 | AU2: 5 | AV2: 5 | AX2: Biology of laboratory animals II. Species-specific biology of large laboratory animals. Anatomy, physiology, behaviour, care and housing. (Dr. Gabriella Varga) | AY2: 4 | AZ2: 5 | BA2: 5 | BB2: 5 | BD2: Examination of animal behaviour (Máté Fort Molnár) | BE2: 5 | BF2: 4 | BG2: 4 | BH2: 4 | BJ2: Animal care, husbandry and management: appropriate, safe and humane handling, sexing and restraint (Dr. Gabriella Varga) | BK2: 5 | BL2: 4 | BM2: 5 | BN2: 5 | BP2: Significance of zebrafish in animal research (Rita Emilia Szabó) | BQ2: 5 | BR2: 5 | BS2: 5 | BT2: 5 | BV2: The concept of gnotobiology; diseases of laboratory animals, interactions of diseases and zoonosis with experiments (Dr. András Papp, Dr. Tünde Vezér) | BW2: 3 | BX2: 2 | BY2: 2 | BZ2: 2 | CB2: Outbred, inbred and transgenic animals, genetic characterization, standardization, genetic quality control. (Dr. Tamás Jánossy) | CC2: 3 | CD2: 2 | CE2: 2 | CF2: 2 | CH2: Care and housing of laboratory animals I. The grading of hygien of animals and animal houses, environmental enrichment. (Dr. Dániel Érces) | CI2: 4 | CJ2: 3 | CK2: 3 | CL2: 3 | CN2: Care and housing of laboratory animals II. Reproduction and breeding. Nutrition. Quarantine, hygiene and disinfection, health hazards and safe practices in animal houses. (Dr. Tamás Jánossy) | CO2: 4 | CP2: 4 | CQ2: 3 | CR2: 3 | CT2: Creating transgenic lines Species-specific recognition of pain, suffering and distress; monitoring of animal wellbeing. (Dr. Marietta Poles) | CU2: 3 | CV2: 3 | CW2: 3 | CX2: 3 | CY2: Too much details! The basic it is enough for understand the basics. | CZ2: Anaesthesia and analgesia of laboratory animals. General rules of anaesthesia. Post-experimental management: humane endpoints, methods of euthanasia. (Dr. Dániel Érces) | DA2: 4 | DB2: 4 | DC2: 4 | DD2: 4 | DF2: Advanced anaesthesia for surgical or prolonged procedures. Applied drugs, doses and side effects. (Dr. Dániel Érces) | DG2: 4 | DH2: 4 | DI2: 4 | DJ2: 4 | DL2: Safety in working with animals carrying infectious diseases/agents. (Dr. András Papp, Dr. Tünde Vezér) | DM2: 3 | DN2: 3 | DO2: 3 | DP2: 3 | DQ2: For this type of presentation should decrease the details! | DR2: Principles of surgical procedures, the rules of asepsis. Basic surgical procedures. Wound management. (Dr. Petra Hartmann) | DS2: 4 | DT2: 4 | DU2: 4 | DV2: 4 | DW2: Very interesting! You can bring the tools to see in the class! You can bring examples "in vivo" of sutures! | DX2: Design of procedures and projects I. Experimental techniques in practice. Monitoring of vital signs. (Dr. József Kaszaki) | DY2: 4 | DZ2: 4 | EA2: 4 | EB2: 4 | ED2: Design of procedures and projects II. Experimental design: the protocol of animal experiments; interpretation and statistical evaluation of data 1. (Dr. József Kaszaki) | EJ2: Alternatives to animal use 1. Possibilities and limitations of alternatives (Dr. Gábor Erős) | EK2: 3 | EL2: 3 | EM2: 3 | EN2: 3 | EO2: The presentation was too weak. The subject is interesting but I had this basic things in my bachelor! Should be more practical or put this and the other seminar together. | EP2: Alternatives to animal use 2. In vitro and ex vivo experimental techniques; tissue cultures, Langendorff method (Dr. Tamás Csont, Dr. Csaba Csonka ) | EQ2: 3 | ER2: 3 | ES2: 3 | ET2: 3 | EU2: The presentation it was not interesting. There are a lot of ways to speak about the cells, and not only speaking. Can be demonstrate! We catch much more than only speaking! | EV2: Interpretation of results 2; Complex statistical analysis (Dr. Ferenc Rárósi) | EW2: 3 | EX2: 3 | EY2: 3 | EZ2: 3 | FB2: Interpretation of results 2; search of the literature; publication of results (Dr. Andrea Szabó) | FC2: 3 | FD2: 2 | FE2: 3 | FF2: 3 | FH2: Dilemmas of translating animal experiments to clinical practice. Lost of translation? (Dr. László Juhász) | FI2: 3 | FJ2: 4 | FK2: 4 | FL2: 4 | FN2: Licensing of animal experiments in practice - recapitulation (Dr. József Kaszaki) | FO2: 4 | FP2: 4 | FQ2: 4 | FR2: 4
A3: Student 2 | C3: 4 | D3: 5 | E3: 5 | F3: 5 | I3: 5 | J3: 5 | K3: 5 | L3: 5 | O3: 4 | P3: 4 | Q3: 5 | R3: 5 | U3: 3 | V3: 5 | W3: 5 | X3: 5 | AA3: 5 | AB3: 4 | AC3: 5 | AD3: 5 | AG3: 5 | AH3: 4 | AI3: 5 | AJ3: 5 | AM3: 4 | AN3: 5 | AO3: 5 | AP3: 5 | AS3: 5 | AT3: 5 | AU3: 5 | AV3: 4 | AY3: 4 | AZ3: 5 | BA3: 5 | BB3: 4 | BE3: 5 | BF3: 5 | BG3: 5 | BH3: 5 | BK3: 5 | BL3: 5 | BM3: 5 | BN3: 4 | BQ3: 5 | BR3: 5 | BS3: 5 | BT3: 5 | BW3: 3 | BX3: 4 | BY3: 4 | BZ3: 5 | CC3: 5 | CD3: 4 | CE3: 5 | CF3: 5 | CI3: 5 | CJ3: 5 | CK3: 5 | CL3: 5 | CO3: 5 | CP3: 5 | CQ3: 5 | CR3: 5 | CU3: 4 | CV3: 4 | CW3: 4 | CX3: 5 | DA3: 5 | DB3: 4 | DC3: 5 | DD3: 5 | DG3: 4 | DH3: 4 | DI3: 4 | DJ3: 5 | DK3: In some points it overlaps with previous lecture (mostly the beginning). | DM3: 3 | DN3: 4 | DO3: 4 | DP3: 5 | DS3: 4 | DT3: 5 | DU3: 4 | DV3: 5 | DY3: 4 | DZ3: 4 | EA3: 4 | EB3: 5 | EE3: 5 | EF3: 5 | EG3: 5 | EH3: 5 | EK3: 5 | EL3: 5 | EM3: 5 | EN3: 5 | EQ3: 5 | ER3: 5 | ES3: 4 | ET3: 5 | EU3: Overlaps with previous lecture. | EW3: 5 | EX3: 5 | EY3: 4 | EZ3: 5 | FC3: 5 | FD3: 5 | FE3: 4 | FF3: 5 | FI3: 5 | FJ3: 5 | FK3: 4 | FL3: 5 | FO3: 5 | FP3: 5 | FQ3: 5 | FR3: 5
A4: Student 3 | C4: 5 | D4: 5 | E4: 4 | F4: 4 | G4: The opening of the course was amazing. | I4: 5 | J4: 5 | K4: 5 | L4: 4 | M4: Valuable information, but too much material. | O4: 5 | P4: 4 | Q4: 4 | R4: 4 | S4: Too much details in legislation part. | U4: 4 | V4: 4 | W4: 4 | X4: 4 | AA4: 5 | AB4: 4 | AC4: 4 | AD4: 4 | AG4: 4 | AH4: 3 | AI4: 4 | AJ4: 4 | AK4: Rich and valuable information. | AM4: 5 | AN4: 5 | AO4: 5 | AP4: 5 | AQ4: The lecturer was so clever & the statistics part was valuable. | AS4: 4 | AT4: 3 | AU4: 4 | AV4: 4 | AY4: 3 | AZ4: 4 | BA4: 2 | BB4: 4 | BE4: 4 | BF4: 5 | BG4: 4 | BH4: 4 | BK4: 5 | BL4: 5 | BM4: 5 | BN4: 5 | BQ4: 4 | BR4: 3 | BS4: 4 | BT4: 4 | BU4: I think there was too much information in the lecture. | BW4: 4 | BX4: 3 | BY4: 4 | BZ4: 4 | CA4: Too much information, a little bit boring. | CC4: 4 | CD4: 3 | CE4: 4 | CF4: 4 | CG4: Boring information & topic. | CI4: 4 | CJ4: 4 | CK4: 3 | CL4: 5 | CO4: 5 | CP4: 4 | CQ4: 4 | CR4: 4 | CS4: Too much repetion in information. | CU4: 5 | CV4: 4 | CW4: 4 | CX4: 4 | CY4: Tough information. | DA4: 5 | DB4: 5 | DC4: 5 | DD4: 5 | DG4: 4 | DH4: 4 | DI4: 4 | DJ4: 5 | DK4: Valuable information about anesthesia. | DM4: 5 | DN4: 5 | DO4: 4 | DP4: 5 | DS4: 4 | DT4: 4 | DU4: 4 | DV4: 4 | DY4: 5 | DZ4: 5 | EA4: 4 | EB4: 4 | EE4: 4 | EF4: 4 | EG4: 4 | EH4: 4 | EK4: 5 | EL4: 5 | EM4: 5 | EN4: 5 | EQ4: 4 | ER4: 4 | ES4: 4 | ET4: 4 | EU4: The presentation could be more knowledgeable. | EW4: 5 | EX4: 5 | EY4: 5 | EZ4: 5 | FC4: 4 | FD4: 4 | FE4: 4 | FF4: 4 | FG4: More time was needed for this part. | FI4: 4 | FJ4: 4 | FK4: 4 | FL4: 4 | FO4: 4 | FP4: 4 | FQ4: 4 | FR4: 4
A5: Student 4 | C5: 5 | D5: 5 | E5: 5 | F5: 5 | I5: 5 | J5: 5 | K5: 5 | L5: 5 | O5: 3 | P5: 2 | Q5: 4 | R5: 4 | U5: 5 | V5: 5 | W5: 4 | X5: 5 | AA5: 4 | AB5: 3 | AC5: 5 | AD5: 5 | AG5: 4 | AH5: 3 | AI5: 5 | AJ5: 5 | AM5: 5 | AN5: 5 | AO5: 5 | AP5: 4 | AQ5: More time is needed for this subject, as sample size is very important for an application. Moreover, more actual samples on real project may help. | AS5: 5 | AT5: 5 | AU5: 5 | AV5: 5 | AY5: 5 | AZ5: 2 | BA5: 5 | BB5: 5 | BE5: 5 | BF5: 5 | BG5: 3 | BH5: 5 | BI5: More specific examples for the use of these tests may be helpful for the full understand of their use. | BK5: 5 | BL5: 2 | BM5: 5 | BN5: 5 | BO5: Improve english language. | BQ5: 5 | BR5: 5 | BS5: 5 | BT5: 5 | BW5: 5 | BX5: 4 | BY5: 5 | BZ5: 5 | CC5: 4 | CD5: 3 | CE5: 5 | CF5: 5 | CI5: 5 | CJ5: 5 | CK5: 5 | CL5: 5 | CO5: 5 | CP5: 3 | CQ5: 5 | CR5: 4 | CU5: 4 | CV5: 5 | CW5: 5 | CX5: 5 | DA5: 4 | DB5: 5 | DC5: 5 | DD5: 5 | DE5: Avertin was not mentioned. | DG5: 5 | DH5: 5 | DI5: 2 | DJ5: 4 | DK5: It is a too condensated lesson. Those who did not work with larger animals may be confused. | DM5: 5 | DN5: 4 | DO5: 5 | DP5: 5 | DS5: 5 | DT5: 5 | DU5: 5 | DV5: 5 | DW5: Very clear, despite it was a theorical lesson on practice subject. Excellent. | DY5: 5 | DZ5: 2 | EA5: 4 | EB5: 2 | EC5: Too vaste subject. Very bad english. Many attendants need more basis on subject. Most of foreign people are not graduated in biology, but biotech or such, in wich phisiology is not studied. | EE5: 5 | EF5: 5 | EG5: 5 | EH5: 2 | EK5: 5 | EL5: 5 | EM5: 5 | EN5: 2 | EQ5: 5 | ER5: 5 | ES5: 5 | ET5: 2 | EW5: 5 | EX5: 5 | EY5: 5 | EZ5: 2 | FA5: No examples or specific subject (and no answers) | FC5: 5 | FD5: 5 | FE5: 2 | FF5: 3 | FI5: 5 | FJ5: 5 | FK5: 2 | FL5: 4
A6: Student 5 | C6: 5 | D6: 5 | E6: 5 | F6: 5 | I6: 5 | J6: 5 | K6: 5 | L6: 4 | O6: 5 | P6: 4 | Q6: 4 | R6: 3 | S6: The comparison between European and hungarian law makes it very confusing. It is an international course, the EU legislation is enough. Details on hungarian legislation can be a one-day course for those working in the country. | U6: 5 | V6: 5 | W6: 5 | X6: 5 | Y6: It could be more general without going deep in specific models. | AA6: 5 | AB6: 4 | AC6: 5 | AD6: 4 | AG6: 5 | AH6: 4 | AI6: 5 | AJ6: 4 | AM6: 5 | AN6: 5 | AO6: 5 | AP6: 5 | AS6: 4 | AT6: 5 | AU6: 5 | AV6: 5 | AY6: 5 | AZ6: 4 | BA6: 5 | BB6: 5 | BE6: 4 | BF6: 4 | BG6: 4 | BH6: 4 | BK6: 5 | BL6: 4 | BM6: 5 | BN6: 4 | BQ6: 4 | BR6: 4 | BS6: 4 | BT6: 4 | BW6: 5 | BX6: 3 | BY6: 5 | BZ6: 3 | CC6: 5 | CD6: 1 | CE6: 4 | CF6: 1 | CG6: The topic is very important but the presentation was boring and hard to follow. | CI6: 4 | CJ6: 5 | CK6: 5 | CL6: 4 | CO6: 4 | CP6: 1 | CQ6: 4 | CR6: 1 | CU6: 3 | CV6: 3 | CW6: 4 | CX6: 3 | CY6: This subject is of extreme importance. But more practiced ways should be given. Of course all the theoretical ways of monitoring the animal wellbeing are important. But practically some of them (if not more than half) are impossible to follow. It would have been important to show how to do it exactly in the daily life of the facilities. | DA6: 5 | DB6: 5 | DC6: 5 | DD6: 5 | DG6: 5 | DH6: 5 | DI6: 5 | DJ6: 5 | DM6: 4 | DN6: 3 | DO6: 4 | DP6: 4 | DS6: 5 | DT6: 5 | DU6: 5 | DV6: 5 | DY6: 4 | DZ6: 3 | EA6: 3 | EB6: 4 | EC6: Some more focus presentation on general signs that should be follow in any experiment and less specific on certain type of work / experiment. | EK6: 3 | EL6: 3 | EM6: 2.5 | EN6: 3 | EO6: I thinh both of this lectures should focus less on the cell line culture techniques but more on the use of cell lines / in vitro / ex vivo tecniques to optimize the in vivo studies. Of course there are no general rules to predict in vivo results but there are guidances and parameters to pay attention and study before in vivo experiments! | EQ6: 5 | ER6: 5 | ES6: 3 | ET6: 4 | EW6: 5 | EX6: 4 | EY6: 4 | EZ6: 4 | FA6: A tutorial time would have been useful on the practice part. For example calculate the sample size for the proposal or for the studies the students will performed in their own lab. After a general introduction more practiced based on each individual projects would have been more useful! | FC6: 3 | FD6: 4 | FE6: 4 | FF6: 4 | FG6: Information about the key points in publishing in vivo studies was very useful but the first part of I.F. of journals / Q1 levels, etc. are non-sense at this level and not important for the FELASA course. | FI6: 4 | FJ6: 4 | FK6: 5 | FL6: 5
A7: Student 6 | C7: 5 | D7: 5 | E7: 5 | F7: 5 | G7: Clear presentation / good discussion. | I7: 5 | J7: 5 | K7: 5 | L7: 5 | M7: Clear presentation / good discussion. | O7: 5 | P7: 5 | Q7: 5 | R7: 5 | S7: English could be clearer! | U7: 5 | V7: 5 | W7: 5 | X7: 2 | Y7: Handout is 90°rotated / difficult to read. | AA7: 5 | AB7: 5 | AC7: 5 | AD7: 5 | AG7: 5 | AH7: 5 | AI7: 5 | AJ7: 5 | AM7: 5 | AN7: 5 | AO7: 5 | AP7: 4 | AQ7: Should be take more examples to explan rather than just math definition. Discussion could be better. | AS7: 5 | AT7: 5 | AU7: 5 | AV7: 5 | AY7: 5 | AZ7: 3 | BA7: 5 | BB7: 5 | BC7: Presentation could be clearer R using lots of "hmm" "Vhrr" during speaking in between. (Irritating) | BE7: 5 | BF7: 5 | BG7: 5 | BH7: 5 | BK7: 5 | BL7: 3 | BM7: 5 | BN7: 5 | BO7: See above!! | BQ7: 5 | BR7: 5 | BS7: 5 | BT7: 5 | BW7: 3 | BX7: 1 | BY7: 3 | BZ7: 4 | CA7: Lack of discussion! Requires more interactive ways. | CC7: 3 | CD7: 1 | CE7: 3 | CF7: 4 | CG7: Lack of discussion! Requires more interactive ways. | CI7: 5 | CJ7: 5 | CK7: 5 | CL7: 5 | CO7: 5 | CP7: 5 | CQ7: 5 | CR7: 5 | CU7: 3 | CV7: 4 | CW7: 4 | CX7: 4 | CY7: Easy to tell lecturer does not have hand-on expertences! | DA7: 5 | DB7: 5 | DC7: 5 | DD7: 5 | DE7: Very positive!! Very clear!! | DG7: 5 | DH7: 5 | DI7: 5 | DJ7: 5 | DK7: Very positive!! Very clear!! | DM7: 2 | DN7: 1 | DO7: 3 | DP7: 3 | DQ7: Presentation is not clear! Not active discussion. | DS7: 5 | DT7: 5 | DU7: 5 | DV7: 5 | DY7: 5 | DZ7: 5 | EA7: 5 | EB7: 5 | EC7: Presentation in english is getting better after several rounds of lectures given! (Requires more practice!! Then can improve (I think).) | EE7: 5 | EF7: 5 | EG7: 5 | EH7: 5 | EK7: 3 | EL7: 3 | EM7: 3 | EN7: 3 | EO7: Pesonally less important issues… | EQ7: 3 | ER7: 3 | ES7: 3 | ET7: 3 | EU7: Pesonally less important issues… | EW7: 3 | EX7: 3 | EY7: 3 | EZ7: 3 | FA7: Should be more (real practice) presented (e.g. pick up real examples as scientist) rather than just principles which is less useful because by gap between theory and real practice | FC7: 5 | FD7: 5 | FE7: 5 | FF7: 5 | FG7: Very clear presentation! | FI7: 4 | FJ7: 5 | FK7: 5 | FL7: 5
A8: Student 7 | C8: 5 | D8: 4 | E8: 5 | F8: 5 | G8: Appreciable. | I8: 5 | J8: 4 | K8: 5 | L8: 5 | M8: Good. | O8: 5 | P8: 4 | Q8: 5 | R8: 5 | S8: Very clear. | U8: 4 | V8: 4 | W8: 5 | X8: 5 | AA8: 5 | AB8: 4 | AC8: 4 | AD8: 5 | AE8: Very interesting. | AG8: 5 | AH8: 4 | AI8: 4 | AJ8: 4 | AK8: Useful. | AM8: 4 | AN8: 4 | AO8: 4 | AP8: 4 | AQ8: Need more detailed explanations and examples for clinical calculation. | AS8: 5 | AT8: 5 | AU8: 5 | AV8: 5 | AW8: Excellent. | AY8: 4 | AZ8: 4 | BA8: 4 | BB8: 4 | BC8: Good. | BE8: 4 | BF8: 4 | BG8: 4 | BH8: 4 | BI8: Good. | BK8: 4 | BL8: 4 | BM8: 4 | BN8: 4 | BO8: Good. | BQ8: 5 | BR8: 4 | BS8: 4 | BT8: 4 | BU8: Excellent. | BW8: 4 | BX8: 4 | BY8: 4 | BZ8: 4 | CA8: Little more detailed. | CC8: 4 | CD8: 3 | CE8: 3 | CF8: 4 | CI8: 4 | CJ8: 5 | CK8: 5 | CL8: 5 | CM8: Very interesting. | CO8: 4 | CP8: 4 | CQ8: 4 | CR8: 4 | CU8: 4 | CV8: 4 | CW8: 4 | CX8: 4 | DA8: 4 | DB8: 5 | DC8: 4 | DD8: 4 | DE8: Excellent. | DG8: 4 | DH8: 4 | DI8: 5 | DJ8: 5 | DK8: Excellent. | DM8: 4 | DN8: 4 | DO8: 4 | DP8: 3 | DS8: 5 | DT8: 5 | DU8: 5 | DV8: 5 | DW8: Good knowledge. | DY8: 5 | DZ8: 5 | EA8: 5 | EB8: 5 | EC8: Excellent presentation. | EE8: 5 | EF8: 4 | EG8: 4 | EH8: 4 | EI8: Advanced. | EK8: 4 | EL8: 4 | EM8: 4 | EN8: 4 | EQ8: 4 | ER8: 4 | ES8: 4 | ET8: 4 | EW8: 4 | EX8: 4 | EY8: 4 | EZ8: 4 | FA8: Try to give some clinical examples. | FC8: 4 | FD8: 4 | FE8: 4 | FF8: 4 | FI8: 4 | FJ8: 4 | FK8: 4 | FL8: 4 | FO8: 4 | FP8: 4 | FQ8: 4 | FR8: 4
A9: Student 8 | C9: 5 | D9: 4 | E9: 4 | F9: 4 | I9: 4 | J9: 4 | K9: 4 | L9: 4 | O9: 4 | P9: 4 | Q9: 4 | R9: 4 | U9: 4 | V9: 4 | W9: 4 | X9: 3 | AA9: 5 | AB9: 4 | AC9: 4 | AD9: 4 | AG9: 5 | AH9: 4 | AI9: 4 | AJ9: 4 | AM9: 5 | AN9: 5 | AO9: 5 | AP9: 4 | AS9: 4 | AT9: 4 | AU9: 5 | AV9: 4 | AY9: 4 | AZ9: 4 | BA9: 5 | BB9: 4 | BE9: 5 | BF9: 4 | BG9: 4 | BH9: 4 | BK9: 5 | BL9: 4 | BM9: 4 | BN9: 4 | BQ9: 5 | BR9: 5 | BS9: 4 | BT9: 4 | BW9: 5 | BX9: 4 | BY9: 4 | BZ9: 4 | CC9: 5 | CD9: 4 | CE9: 4 | CF9: 4 | CI9: 5 | CJ9: 4 | CK9: 4 | CL9: 4 | CO9: 5 | CP9: 4 | CQ9: 4 | CR9: 4 | CU9: 5 | CV9: 4 | CW9: 5 | CX9: 4 | DA9: 5 | DB9: 5 | DC9: 5 | DD9: 5 | DG9: 5 | DH9: 5 | DI9: 5 | DJ9: 5 | DM9: 4 | DN9: 4 | DO9: 4 | DP9: 4 | DS9: 4 | DT9: 4 | DU9: 4 | DV9: 4 | DY9: 5 | DZ9: 4 | EA9: 5 | EB9: 4 | EE9: 5 | EF9: 4 | EG9: 4 | EH9: 4 | EK9: 5 | EL9: 4 | EM9: 4 | EN9: 4 | EQ9: 5 | ER9: 4 | ES9: 4 | ET9: 4 | EW9: 5 | EX9: 5 | EY9: 5 | EZ9: 4 | FC9: 5 | FD9: 4 | FE9: 5 | FF9: 4 | FI9: 5 | FJ9: 4 | FK9: 4 | FL9: 4 | FO9: 5 | FP9: 4 | FQ9: 5 | FR9: 4 | FT9: Please, improve english level of some teacher.
A10: Student 9 | C10: 5 | D10: 5 | E10: 5 | F10: 5 | I10: 5 | J10: 5 | K10: 5 | L10: 5 | O10: 5 | P10: 4 | Q10: 5 | R10: 5 | U10: 3 | V10: 5 | W10: 4 | X10: 5 | Y10: Too many details for some examples. | AA10: 4 | AB10: 3 | AC10: 5 | AD10: 3 | AG10: 5 | AH10: 4 | AI10: 5 | AJ10: 4 | AM10: 5 | AN10: 5 | AO10: 5 | AP10: 5 | AS10: 5 | AT10: 5 | AU10: 2 | AV10: 5 | AW10: Everyone should know these basics at this level. Why is it important to memorize dental formulas? | AY10: 5 | AZ10: 2 | BA10: 3 | BB10: 3 | BE10: 5 | BF10: 5 | BG10: 5 | BH10: 5 | BI10: Very good english --> easy to follow, good explanations. | BK10: 5 | BL10: 2 | BM10: 3 | BN10: 3 | BQ10: 5 | BR10: 2 | BS10: 5 | BT10: 4 | BW10: 5 | BX10: 3 | BY10: 5 | BZ10: 4 | CC10: 5 | CD10: 2 | CE10: 4 | CF10: 2 | CI10: 4 | CJ10: 3 | CK10: 4 | CL10: 3 | CO10: 5 | CP10: 2 | CQ10: 1 | CR10: 2 | CS10: Redundant, we have heard this before. | CU10: 4 | CV10: 4 | CW10: 5 | CX10: 4 | DA10: 5 | DB10: 5 | DC10: 5 | DD10: 5 | DE10: Very good english. Good emphasis on most important points. | DG10: 5 | DH10: 5 | DI10: 5 | DJ10: 5 | DK10: Very good english. Good emphasis on most important points. | DM10: 5 | DN10: 3 | DO10: 5 | DP10: 3 | DS10: 5 | DT10: 5 | DU10: 5 | DV10: 5 | EE10: 5 | EF10: 4 | EG10: 5 | EH10: 4 | EK10: 5 | EL10: 3 | EM10: 4 | EN10: 3 | EQ10: 5 | ER10: 5 | ES10: 5 | ET10: 5 | EW10: 5 | EX10: 5 | EY10: 5 | EZ10: 5 | FC10: 5 | FD10: 5 | FE10: 5 | FF10: 5 | FI10: 5 | FJ10: 4 | FK10: 5 | FL10: 5 | FM10: Very good english, easy to follow. Could be a little more confident / enthusiastic.
A11: Student 10 | C11: 5 | D11: 5 | E11: 5 | F11: 5 | G11: Very clever and detailed. | I11: 5 | J11: 5 | K11: 5 | L11: 5 | M11: Prof. Boros gave an excellent presentation going in deep of the ethical topics with a great logical excursus. Very very good! | O11: 5 | P11: 5 | Q11: 5 | R11: 5 | S11: Very specific (in a good way). Good discussion. | U11: 5 | V11: 4 | W11: 3 | X11: 5 | Y11: The topic was nort 100% fulfil with the expectation because the part of extrapolating animal data to human, how to make a critical evaluation to a criteria of evaluation was not earned (?) enough. | AA11: 4 | AB11: 4 | AC11: 4 | AD11: 4 | AE11: Short time for discuccion. | AG11: 4 | AH11: 4 | AI11: 4 | AJ11: 4 | AK11: Short time for discuccion. | AM11: 5 | AN11: 5 | AO11: 5 | AP11: 5 | AS11: 3 | AT11: 2 | AU11: 4 | AV11: 4 | AW11: Too superficial in some points and information not really neccesary on the other side. | AY11: 3 | AZ11: 2 | BA11: 4 | BB11: 4 | BC11: Should be more focused on the usage of certain animals (dog, cats). It was more focus on general aspects, relevant, if they are considered as pets. | BE11: 4 | BF11: 5 | BG11: 4 | BH11: 4 | BK11: 4 | BL11: 2 | BM11: 4 | BN11: 3 | BO11: Those were some mistakes!! (No grammar (?) but in concepts) - e.g. 500 ml fluid ic in the cat is not right, it is a bad practice (not in the slides but it was said) | BQ11: 4 | BR11: 4 | BS11: 5 | BT11: 4 | BW11: 5 | BX11: 4 | BY11: 4 | BZ11: 4 | CC11: 5 | CD11: 4 | CE11: 5 | CF11: 3 | CG11: Too much writing on the slides. | CI11: 5 | CJ11: 5 | CK11: 5 | CL11: 5 | CO11: 4 | CP11: 3 | CQ11: 4 | CR11: 3 | CS11: Too much writing on the slides. | CU11: 4 | CV11: 4 | CW11: 4 | CX11: 4 | DA11: 5 | DB11: 5 | DC11: 5 | DD11: 5 | DE11: Very prepared, precise and it is clear he has a lot of experiences, he gives many good practical suggestions. Very very good. | DG11: 5 | DH11: 5 | DI11: 5 | DJ11: 5 | DK11: The same as before. Very good. | DM11: 4 | DN11: 4 | DO11: 4 | DP11: 4 | DS11: 5 | DT11: 5 | DU11: 5 | DV11: 5 | DW11: Very well! Maybe I would give her more time. The topic is very interesting and well described. | DY11: 4 | DZ11: 4 | EA11: 4 | EB11: 4 | EC11: A bit too detailed - there is a discrepancy between the deep of the cardiocirculatory system and the other systems and on top of that these infections are too specific for the general porpouse. | EE11: 4 | EF11: 4 | EG11: 4 | EH11: 4 | EK11: 4 | EL11: 4 | EM11: 4 | EN11: 4 | EQ11: 5 | ER11: 5 | ES11: 5 | ET11: 5 | EU11: Good explanation, good discussion. Easy to understand but accurate at the same time. Both speakers (in vitro and ex vivo) were great! | EW11: 4 | EX11: 4 | EY11: 4 | EZ11: 4 | FC11: 5 | FD11: 5 | FE11: 5 | FF11: 5 | FG11: Very good excursus in the evaluation of working interactive. Very useful and clear presentation - very good! | FI11: 4 | FJ11: 4 | FK11: 4 | FL11: 4 | FO11: 4 | FP11: 4 | FQ11: 4 | FR11: 4 | FT11: In general, the lectures of the days were very good and of great quality and expertise. Unfortunately, because of the very strict schedule, there was a bit of lack in the discussion part. The lectures and their expertise were impeccable. General suggestion: The course is very intense and the lectures are very educative, but the time available to integrate the proper knowledge (and be confident abount the topics) is relatively short. In theory the course could be prolonged, but I can say that this is not very feasible for working ?? . So my suggestion is basically to create an e-learning platform (with slides presentation and voice of the speakers) which has to be completed (maybe also with a auto-evaluation test at the end of each module) before the "real course". In this way in the "real course" same specific topics could be discussed more in detail (in lectures) and the practice can be performed. The "real course" could be, in their way, also shorter (5 days?) because more compact. In the end of it the same kind of evaluation (exams) can be performed by the participants. After all the course has been very good and personally I am very satisfied - Thank you-
A12: Student 11 | C12: 3 | D12: 4 | E12: 4 | F12: 4 | I12: 4 | J12: 5 | K12: 4 | L12: 4 | O12: 4 | P12: 2 | Q12: 4 | R12: 4 | S12: The lecturer has seriuos issues with the english language. Should be replaced. | U12: 5 | V12: 5 | W12: 4 | X12: 5 | AA12: 4 | AB12: 2 | AC12: 4 | AD12: 4 | AG12: 4 | AH12: 2 | AI12: 4 | AJ12: 4 | AM12: 5 | AN12: 4 | AO12: 4 | AP12: 4 | AS12: 4 | AT12: 4 | AU12: 4 | AV12: 4 | AY12: 3 | AZ12: 2 | BA12: 4 | BB12: 4 | BC12: Problems of language, can not understand the quiestions, therefore can not answer. | BE12: 3 | BF12: 5 | BG12: 3 | BH12: 3 | BK12: 3 | BL12: 2 | BM12: 3 | BN12: 4 | BQ12: 4 | BR12: 4 | BS12: 3 | BT12: 4 | BW12: 3 | BX12: 2 | BY12: 2 | BZ12: 3 | CA12: Simply horrible. If they just read out loud the presentation. Do not make a lecture, a handout is enough. | CC12: 5 | CD12: 3 | CE12: 5 | CF12: 5 | CI12: 4 | CJ12: 5 | CK12: 4 | CL12: 4 | CO12: 4 | CP12: 4 | CQ12: 4 | CR12: 4 | CU12: 4 | CV12: 4 | CW12: 4 | CX12: 4 | DA12: 5 | DB12: 5 | DC12: 5 | DD12: 5 | DG12: 5 | DH12: 5 | DI12: 5 | DJ12: 5 | DM12: 5 | DN12: 3 | DO12: 5 | DP12: 5 | DS12: 4 | DT12: 5 | DU12: 5 | DV12: 5 | DY12: 4 | DZ12: 3 | EA12: 3 | EB12: 4 | EE12: 5 | EF12: 5 | EG12: 5 | EH12: 5 | EK12: 5 | EL12: 5 | EM12: 5 | EN12: 5 | EQ12: 5 | ER12: 5 | ES12: 5 | ET12: 5 | EW12: 5 | EX12: 5 | EY12: 5 | EZ12: 5 | FC12: 5 | FD12: 5 | FE12: 5 | FF12: 5 | FI12: 5 | FJ12: 5 | FK12: 5 | FL12: 5 | FO12: 5 | FP12: 5 | FQ12: 5 | FR12: 5
A13: Student 12 | C13: 4 | D13: 3 | E13: 4 | F13: 3 | I13: 4 | J13: 4 | K13: 4 | L13: 3 | O13: 4 | P13: 4 | Q13: 4 | R13: 4 | U13: 4 | V13: 4 | W13: 4 | X13: 4 | AA13: 3 | AB13: 3 | AC13: 3 | AD13: 3 | AG13: 3 | AH13: 3 | AI13: 3 | AJ13: 3 | AM13: 5 | AN13: 4 | AO13: 4 | AP13: 4 | AS13: 4 | AT13: 3 | AU13: 3 | AV13: 3 | AY13: 4 | AZ13: 3 | BA13: 3 | BB13: 3 | BE13: 5 | BF13: 4 | BG13: 3 | BH13: 3 | BK13: 4 | BL13: 3 | BM13: 3 | BN13: 3 | BQ13: 3 | BR13: 3 | BS13: 3 | BT13: 3 | BW13: 3 | BX13: 1 | BY13: 3 | BZ13: 3 | CC13: 5 | CD13: 4 | CE13: 3 | CF13: 4 | CI13: 4 | CJ13: 3 | CK13: 3 | CL13: 3 | CO13: 3 | CP13: 3 | CQ13: 3 | CR13: 3 | CU13: 4 | CV13: 4 | CW13: 4 | CX13: 3 | DA13: 4 | DB13: 4 | DC13: 4 | DD13: 3 | DG13: 4 | DH13: 4 | DI13: 4 | DJ13: 4 | DM13: 3 | DN13: 3 | DO13: 4 | DP13: 4 | DS13: 5 | DT13: 3 | DU13: 4 | DV13: 4 | DY13: 4 | DZ13: 3 | EA13: 3 | EB13: 3 | EE13: 3 | EF13: 3 | EG13: 3 | EH13: 3 | EK13: 3 | EL13: 3 | EM13: 3 | EN13: 3 | EQ13: 3 | ER13: 3 | ES13: 3 | ET13: 3 | EW13: 3 | EX13: 3 | EY13: 3 | EZ13: 3 | FC13: 3 | FD13: 3 | FE13: 3 | FF13: 3 | FI13: 3 | FJ13: 3 | FK13: 3 | FL13: 3 | FO13: 3 | FP13: 3 | FQ13: 3 | FR13: 3
A14: AVERAGE | C14: =AVERAGE(C2:C13) -> 4.583333333 | D14: =AVERAGE(D2:D13) -> 4.5 | E14: =AVERAGE(E2:E13) -> 4.583333333 | F14: =AVERAGE(F2:F13) -> 4.5 | I14: =AVERAGE(I2:I13) -> 4.75 | J14: =AVERAGE(J2:J13) -> 4.75 | K14: =AVERAGE(K2:K13) -> 4.75 | L14: =AVERAGE(L2:L13) -> 4.5 | O14: =AVERAGE(O2:O13) -> 4.416666667 | P14: =AVERAGE(P2:P13) -> 3.916666667 | Q14: =AVERAGE(Q2:Q13) -> 4.416666667 | R14: =AVERAGE(R2:R13) -> 4.416666667 | U14: =AVERAGE(U2:U13) -> 4.25 | V14: =AVERAGE(V2:V13) -> 4.416666667 | W14: =AVERAGE(W2:W13) -> 4.166666667 | X14: =AVERAGE(X2:X13) -> 4.333333333 | AA14: =AVERAGE(AA2:AA13) -> 4.416666667 | AB14: =AVERAGE(AB2:AB13) -> 3.583333333 | AC14: =AVERAGE(AC2:AC13) -> 4.25 | AD14: =AVERAGE(AD2:AD13) -> 4.166666667 | AG14: =AVERAGE(AG2:AG13) -> 4.416666667 | AH14: =AVERAGE(AH2:AH13) -> 3.666666667 | AI14: =AVERAGE(AI2:AI13) -> 4.333333333 | AJ14: =AVERAGE(AJ2:AJ13) -> 4.166666667 | AM14: =AVERAGE(AM2:AM13) -> 4.75 | AN14: =AVERAGE(AN2:AN13) -> 4.583333333 | AO14: =AVERAGE(AO2:AO13) -> 4.583333333 | AP14: =AVERAGE(AP2:AP13) -> 4.333333333 | AS14: =AVERAGE(AS2:AS13) -> 4.333333333 | AT14: =AVERAGE(AT2:AT13) -> 4.25 | AU14: =AVERAGE(AU2:AU13) -> 4.333333333 | AV14: =AVERAGE(AV2:AV13) -> 4.416666667 | AY14: =AVERAGE(AY2:AY13) -> 4.083333333 | AZ14: =AVERAGE(AZ2:AZ13) -> 3.333333333 | BA14: =AVERAGE(BA2:BA13) -> 4.166666667 | BB14: =AVERAGE(BB2:BB13) -> 4.166666667 | BE14: =AVERAGE(BE2:BE13) -> 4.5 | BF14: =AVERAGE(BF2:BF13) -> 4.583333333 | BG14: =AVERAGE(BG2:BG13) -> 4 | BH14: =AVERAGE(BH2:BH13) -> 4.166666667 | BK14: =AVERAGE(BK2:BK13) -> 4.583333333 | BL14: =AVERAGE(BL2:BL13) -> 3.333333333 | BM14: =AVERAGE(BM2:BM13) -> 4.25 | BN14: =AVERAGE(BN2:BN13) -> 4.083333333 | BQ14: =AVERAGE(BQ2:BQ13) -> 4.5 | BR14: =AVERAGE(BR2:BR13) -> 4.083333333 | BS14: =AVERAGE(BS2:BS13) -> 4.333333333 | BT14: =AVERAGE(BT2:BT13) -> 4.25 | BW14: =AVERAGE(BW2:BW13) -> 4 | BX14: =AVERAGE(BX2:BX13) -> 2.916666667 | BY14: =AVERAGE(BY2:BY13) -> 3.75 | BZ14: =AVERAGE(BZ2:BZ13) -> 3.75 | CC14: =AVERAGE(CC2:CC13) -> 4.416666667 | CD14: =AVERAGE(CD2:CD13) -> 2.833333333 | CE14: =AVERAGE(CE2:CE13) -> 3.916666667 | CF14: =AVERAGE(CF2:CF13) -> 3.583333333 | CI14: =AVERAGE(CI2:CI13) -> 4.416666667 | CJ14: =AVERAGE(CJ2:CJ13) -> 4.333333333 | CK14: =AVERAGE(CK2:CK13) -> 4.25 | CL14: =AVERAGE(CL2:CL13) -> 4.25 | CO14: =AVERAGE(CO2:CO13) -> 4.416666667 | CP14: =AVERAGE(CP2:CP13) -> 3.5 | CQ14: =AVERAGE(CQ2:CQ13) -> 3.833333333 | CR14: =AVERAGE(CR2:CR13) -> 3.5 | CU14: =AVERAGE(CU2:CU13) -> 3.916666667 | CV14: =AVERAGE(CV2:CV13) -> 3.916666667 | CW14: =AVERAGE(CW2:CW13) -> 4.166666667 | CX14: =AVERAGE(CX2:CX13) -> 3.916666667 | DA14: =AVERAGE(DA2:DA13) -> 4.666666667 | DB14: =AVERAGE(DB2:DB13) -> 4.75 | DC14: =AVERAGE(DC2:DC13) -> 4.75 | DD14: =AVERAGE(DD2:DD13) -> 4.666666667 | DG14: =AVERAGE(DG2:DG13) -> 4.583333333 | DH14: =AVERAGE(DH2:DH13) -> 4.583333333 | DI14: =AVERAGE(DI2:DI13) -> 4.416666667 | DJ14: =AVERAGE(DJ2:DJ13) -> 4.75 | DM14: =AVERAGE(DM2:DM13) -> 3.916666667 | DN14: =AVERAGE(DN2:DN13) -> 3.416666667 | DO14: =AVERAGE(DO2:DO13) -> 4.083333333 | DP14: =AVERAGE(DP2:DP13) -> 4 | DS14: =AVERAGE(DS2:DS13) -> 4.583333333 | DT14: =AVERAGE(DT2:DT13) -> 4.583333333 | DU14: =AVERAGE(DU2:DU13) -> 4.583333333 | DV14: =AVERAGE(DV2:DV13) -> 4.666666667 | DY14: =AVERAGE(DY2:DY13) -> 4.454545455 | DZ14: =AVERAGE(DZ2:DZ13) -> 3.818181818 | EA14: =AVERAGE(EA2:EA13) -> 4 | EB14: =AVERAGE(EB2:EB13) -> 4 | EE14: =AVERAGE(EE2:EE13) -> 4.6 | EF14: =AVERAGE(EF2:EF13) -> 4.3 | EG14: =AVERAGE(EG2:EG13) -> 4.4 | EH14: =AVERAGE(EH2:EH13) -> 4 | EK14: =AVERAGE(EK2:EK13) -> 4.166666667 | EL14: =AVERAGE(EL2:EL13) -> 3.916666667 | EM14: =AVERAGE(EM2:EM13) -> 3.958333333 | EN14: =AVERAGE(EN2:EN13) -> 3.666666667 | EQ14: =AVERAGE(EQ2:EQ13) -> 4.333333333 | ER14: =AVERAGE(ER2:ER13) -> 4.25 | ES14: =AVERAGE(ES2:ES13) -> 4 | ET14: =AVERAGE(ET2:ET13) -> 3.916666667 | EW14: =AVERAGE(EW2:EW13) -> 4.333333333 | EX14: =AVERAGE(EX2:EX13) -> 4.25 | EY14: =AVERAGE(EY2:EY13) -> 4.166666667 | EZ14: =AVERAGE(EZ2:EZ13) -> 3.916666667 | FC14: =AVERAGE(FC2:FC13) -> 4.333333333 | FD14: =AVERAGE(FD2:FD13) -> 4.25 | FE14: =AVERAGE(FE2:FE13) -> 4.083333333 | FF14: =AVERAGE(FF2:FF13) -> 4.166666667 | FI14: =AVERAGE(FI2:FI13) -> 4.25 | FJ14: =AVERAGE(FJ2:FJ13) -> 4.25 | FK14: =AVERAGE(FK2:FK13) -> 4.083333333 | FL14: =AVERAGE(FL2:FL13) -> 4.333333333 | FO14: =AVERAGE(FO2:FO13) -> 4.25 | FP14: =AVERAGE(FP2:FP13) -> 4.125 | FQ14: =AVERAGE(FQ2:FQ13) -> 4.25 | FR14: =AVERAGE(FR2:FR13) -> 4.125
C15: =AVERAGE(C2:F13) -> 4.541666667 | I15: =AVERAGE(I2:L13) -> 4.6875 | O15: =AVERAGE(O2:R13) -> 4.291666667 | U15: =AVERAGE(U2:X13) -> 4.291666667 | AA15: =AVERAGE(AA2:AD13) -> 4.104166667 | AG15: =AVERAGE(AG2:AJ13) -> 4.145833333 | AM15: =AVERAGE(AM2:AP13) -> 4.5625 | AS15: =AVERAGE(AS2:AV13) -> 4.333333333 | AY15: =AVERAGE(AY2:BB13) -> 3.9375 | BE15: =AVERAGE(BE2:BH13) -> 4.3125 | BK15: =AVERAGE(BK2:BN13) -> 4.0625 | BQ15: =AVERAGE(BQ2:BT13) -> 4.291666667 | BW15: =AVERAGE(BW2:BZ13) -> 3.604166667 | CC15: =AVERAGE(CC2:CF13) -> 3.6875 | CI15: =AVERAGE(CI2:CL13) -> 4.3125 | CO15: =AVERAGE(CO2:CR13) -> 3.8125 | CU15: =AVERAGE(CU2:CX13) -> 3.979166667 | DA15: =AVERAGE(DA2:DD13) -> 4.708333333 | DG15: =AVERAGE(DG2:DJ13) -> 4.583333333 | DM15: =AVERAGE(DM2:DP13) -> 3.854166667 | DS15: =AVERAGE(DS2:DV13) -> 4.604166667 | DY15: =AVERAGE(DY2:EB13) -> 4.068181818 | EE15: =AVERAGE(EE2:EH13) -> 4.325 | EK15: =AVERAGE(EK2:EN13) -> 3.927083333 | EQ15: =AVERAGE(EQ2:ET13) -> 4.125 | EW15: =AVERAGE(EW2:EZ13) -> 4.166666667 | FC15: =AVERAGE(FC2:FF13) -> 4.208333333 | FI15: =AVERAGE(FI2:FL13) -> 4.229166667 | FO15: =AVERAGE(FO2:FR13) -> 4.1875

Sheet opinions
A1: Biology and experimental practice of zebrafish | B1: Handling, sexing and restraint of laboratory animals. | C1: Methods of investigating laboratory animals behaviour in practice. | D1: Minimally invasive procedures without anaesthesia: injections. Intravenous access with Braun catheters, infusions on phantoms. | E1: Minimally invasive procedures without anaesthesia, calculation of the dose, anesthesia of rodents, recognition and control of pain. Inhalation anaesthesia of rodents. Sampling methods under anaesthesia | F1: Practice in operating theatre I: aseptic techniques, working under sterile circumstances on dummies and phantoms | G1: Practice in operating theatre II: basic surgical procedures, suturing, wound management on dummies and phantoms | H1: Basic surgical procedures on anaesthetised rodents. In vivo monitoring of vital signs | I1: Experiments on large animals: anaesthesia, instrumentation and non-invasive procedures for monitoring on minipigs | J1: Alternatives to animal use 2. In vitro and ex vivo experimental techniques; tissue cultures and the Langendorff method
A2: The microscopic practice was very good. | B2: Excellent handling & animal practice. | C2: Conduction of behavioral test (especially Y maze and rotarod) should not be carried out in such environment. | D2: Very useful practice. It was a great experience. | E2: Really interesting! More practice! | F2: It was a great experience. | G2: More time to practice the techniques! | H2: The bast part of the course!! | I2: Should have more time, should be described first the techniques, and then the student identify each one! | J2: The demonstrators could be more well prepared for this training.
A3: The course was very well organized, maybe the division of the embryo states might help the full comprehension. | B3: I learnt more in handling. Really appreciable. | C3: I learnt more in handling. Really appreciable. | D3: Excellent!! | E3: Some repetitive information with previous parts about anesthesia. | F3: Extraordinary!! Excellent experiences!! | G3: This one also was very useful. | H3: The demonstrators were very well prepared. | I3: Obviously we cannot practice on pigs, but a deeper explanation of the argument (such as repetition of anesthesia effect, vital parameters) would be better. | J3: Researcher took more effort to explain, really interesting.
A4: Less time. | D4: Appreciable. | E4: Excellent. Enjoyed very much! | G4: Too much unneeded information in my opinion. | H4: Excellent! | I4: Microcirculation measurement was interesting. Could focus on small animals!!
A5: For people who never worked with zebrafish the practice was very well organized and focus on different interesting points. | E5: Good knowledge. | G5: Extraordinary!! Excellent experiences!! | H5: Enjoyable!
E6: Just one suggestion: the practice should be performed requiring more calm environment from the students. The procedures are already stressful for the animals and some time they forget that working in a calm environment (as much as possible) is neccesary for the welfare of the animals. Also, reinforce the concept to the students that taking the animals from the tail has to be a temporary procedure - the animal (rat) cannot be transport back and forth hanging at the tail. | H6: I suggest to make more sectors (?) the carotic and jugular incannulation was out of aims but it was a good practice after all. For the animal welfare I would suggest that the anesthetized rats have to be euthanized before open the abdomen and the torax cavity because of: 1) these are the last procedures so the animals are at the end of anesthesia effect; 2) the death due opening of the chest (to practise the suture for example) and the consequent lost of negative pressure is not a humane killing.
A13: Introduction to the science of laboratory animals, use of animals for different areas of research. The procedure of modelling. History of animal experimentation | B13: Ethical aspects and animal welfare (historical background, arguments for and against the use of animals for scientific purposes, moral aspects, ethical committees) | C13: European and Hungarian law, legislation and the Three Rs (Reduction, Replacement, Refinement), ethical permission & license. | D13: Extrapolation of animal data to human. Model examples: inflammation and circulatory shock | E13: Legislation in practice 1: animal welfare and the 3 Rs | F13: Legislation in practice 2: licensing of animal experiments | G13: Basics of statistics - sample size estimation | H13: Biology of laboratory animals I. Species-specific biology of small laboratory animals. Rodent anatomy, physiology, behaviour. | I13: Biology of laboratory animals II. Species-specific biology of large laboratory animals. Anatomy, physiology, behaviour, care and housing.
A14: The opening of the course was amazing. | B14: Too much rules about hungary! Should be more about EU! | C14: Too much details in legislation part. | D14: It could be more general without going deep in specific models. | E14: Very interesting. | F14: Rich and valuable information. | G14: The lecturer was so clever & the statistics part was valuable. | H14: Excellent. | I14: Presentation could be clearer R using lots of "hmm" "Vhrr" during speaking in between. (Irritating)
A15: Clear presentation / good discussion. | B15: Valuable information, but too much material. | C15: The comparison between European and hungarian law makes it very confusing. It is an international course, the EU legislation is enough. Details on hungarian legislation can be a one-day course for those working in the country. | D15: Handout is 90°rotated / difficult to read. | E15: Short time for discuccion. | F15: Useful. | G15: More time is needed for this subject, as sample size is very important for an application. Moreover, more actual samples on real project may help. | H15: Everyone should know these basics at this level. Why is it important to memorize dental formulas? | I15: Good.
A16: Appreciable. | B16: Clear presentation / good discussion. | C16: English could be clearer! | D16: Too many details for some examples. | F16: Short time for discuccion. | G16: Should be take more examples to explan rather than just math definition. Discussion could be better. | H16: Too superficial in some points and information not really neccesary on the other side. | I16: Should be more focused on the usage of certain animals (dog, cats). It was more focus on general aspects, relevant, if they are considered as pets.
A17: Very clever and detailed. | B17: Good. | C17: Very clear. | D17: The topic was nort 100% fulfil with the expectation because the part of extrapolating animal data to human, how to make a critical evaluation to a criteria of evaluation was not earned (?) enough. | G17: Need more detailed explanations and examples for clinical calculation. | I17: Problems of language, can not understand the quiestions, therefore can not answer.
B18: Prof. Boros gave an excellent presentation going in deep of the ethical topics with a great logical excursus. Very very good! | C18: Very specific (in a good way). Good discussion.
C19: The lecturer has seriuos issues with the english language. Should be replaced.
A26: Examination of animal behaviour | B26: Animal care, husbandry and management: appropriate, safe and humane handling, sexing and restraint | C26: Significance of zebrafish in animal research | D26: The concept of gnotobiology; diseases of laboratory animals, interactions of diseases and zoonosis with experiments | E26: Outbred, inbred and transgenic animals, genetic characterization, standardization, genetic quality control. | F26: Care and housing of laboratory animals I. The grading of hygien of animals and animal houses, environmental enrichment. | G26: Care and housing of laboratory animals II. Reproduction and breeding. Nutrition. Quarantine, hygiene and disinfection, health hazards and safe practices in animal houses. | H26: Creating transgenic lines Species-specific recognition of pain, suffering and distress; monitoring of animal wellbeing. | I26: Anaesthesia and analgesia of laboratory animals. General rules of anaesthesia. Post-experimental management: humane endpoints, methods of euthanasia.
A27: More specific examples for the use of these tests may be helpful for the full understand of their use. | B27: Improve english language. | C27: I think there was too much information in the lecture. | D27: Too much information, a little bit boring. | E27: Boring information & topic. | F27: Very interesting. | G27: Too much repetion in information. | H27: Too much details! The basic it is enough for understand the basics. | I27: Avertin was not mentioned.
A28: Good. | B28: See above!! | C28: Excellent. | D28: Lack of discussion! Requires more interactive ways. | E28: The topic is very important but the presentation was boring and hard to follow. | G28: Redundant, we have heard this before. | H28: Tough information. | I28: Very positive!! Very clear!!
A29: Very good english --> easy to follow, good explanations. | B29: Good. | D29: Little more detailed. | E29: Lack of discussion! Requires more interactive ways. | G29: Too much writing on the slides. | H29: This subject is of extreme importance. But more practiced ways should be given. Of course all the theoretical ways of monitoring the animal wellbeing are important. But practically some of them (if not more than half) are impossible to follow. It would have been important to show how to do it exactly in the daily life of the facilities. | I29: Excellent.
B30: Those were some mistakes!! (No grammar (?) but in concepts) - e.g. 500 ml fluid ic in the cat is not right, it is a bad practice (not in the slides but it was said) | D30: Simply horrible. If they just read out loud the presentation. Do not make a lecture, a handout is enough. | E30: Too much writing on the slides. | H30: Easy to tell lecturer does not have hand-on expertences! | I30: Very good english. Good emphasis on most important points.
I31: Very prepared, precise and it is clear he has a lot of experiences, he gives many good practical suggestions. Very very good.
A39: Advanced anaesthesia for surgical or prolonged procedures. Applied drugs, doses and side effects. | B39: Safety in working with animals carrying infectious diseases/agents. | C39: Principles of surgical procedures, the rules of asepsis. Basic surgical procedures. Wound management. | D39: Design of procedures and projects I. Experimental techniques in practice. Monitoring of vital signs. | E39: Design of procedures and projects II. Experimental design: the protocol of animal experiments; interpretation and statistical evaluation of data 1. | F39: Alternatives to animal use 1. Possibilities and limitations of alternatives | G39: Alternatives to animal use 2. In vitro and ex vivo experimental techniques; tissue cultures, Langendorff method | H39: Interpretation of results 2; Complex statistical analysis | I39: Interpretation of results 2; search of the literature; publication of results | J39: Dilemmas of translating animal experiments to clinical practice. Lost of translation? | K39: Licensing of animal experiments in practice - recapitulation | L39: OTHER COMMENTS
A40: In some points it overlaps with previous lecture (mostly the beginning). | B40: For this type of presentation should decrease the details! | C40: Very interesting! You can bring the tools to see in the class! You can bring examples "in vivo" of sutures! | D40: Too vaste subject. Very bad english. Many attendants need more basis on subject. Most of foreign people are not graduated in biology, but biotech or such, in wich phisiology is not studied. | E40: Advanced. | F40: The presentation was too weak. The subject is interesting but I had this basic things in my bachelor! Should be more practical or put this and the other seminar together. | G40: The presentation it was not interesting. There are a lot of ways to speak about the cells, and not only speaking. Can be demonstrate! We catch much more than only speaking! | H40: No examples or specific subject (and no answers) | I40: More time was needed for this part. | J40: Very good english, easy to follow. Could be a little more confident / enthusiastic. | L40: Please, improve english level of some teacher.
A41: Valuable information about anesthesia. | B41: Presentation is not clear! Not active discussion. | C41: Very clear, despite it was a theorical lesson on practice subject. Excellent. | D41: Some more focus presentation on general signs that should be follow in any experiment and less specific on certain type of work / experiment. | F41: I thinh both of this lectures should focus less on the cell line culture techniques but more on the use of cell lines / in vitro / ex vivo tecniques to optimize the in vivo studies. Of course there are no general rules to predict in vivo results but there are guidances and parameters to pay attention and study before in vivo experiments! | G41: Overlaps with previous lecture. | H41: A tutorial time would have been useful on the practice part. For example calculate the sample size for the proposal or for the studies the students will performed in their own lab. After a general introduction more practiced based on each individual projects would have been more useful! | I41: Information about the key points in publishing in vivo studies was very useful but the first part of I.F. of journals / Q1 levels, etc. are non-sense at this level and not important for the FELASA course. | L41: In general, the lectures of the days were very good and of great quality and expertise. Unfortunately, because of the very strict schedule, there was a bit of lack in the discussion part. The lectures and their expertise were impeccable. General suggestion: The course is very intense and the lectures are very educative, but the time available to integrate the proper knowledge (and be confident abount the topics) is relatively short. In theory the course could be prolonged, but I can say that this is not very feasible for working ?? . So my suggestion is basically to create an e-learning platform (with slides presentation and voice of the speakers) which has to be completed (maybe also with a auto-evaluation test at the end of each module) before the "real course". In this way in the "real course" same specific topics could be discussed more in detail (in lectures) and the practice can be performed. The "real course" could be, in their way, also shorter (5 days?) because more compact. In the end of it the same kind of evaluation (exams) can be performed by the participants. After all the course has been very good and personally I am very satisfied - Thank you-
A42: It is a too condensated lesson. Those who did not work with larger animals may be confused. | C42: Good knowledge. | D42: Presentation in english is getting better after several rounds of lectures given! (Requires more practice!! Then can improve (I think).) | F42: Pesonally less important issues… | G42: The presentation could be more knowledgeable. | H42: Should be more (real practice) presented (e.g. pick up real examples as scientist) rather than just principles which is less useful because by gap between theory and real practice | I42: Very clear presentation!
A43: Very positive!! Very clear!! | C43: Very well! Maybe I would give her more time. The topic is very interesting and well described. | D43: Excellent presentation. | G43: Pesonally less important issues… | H43: Try to give some clinical examples. | I43: Very good excursus in the evaluation of working interactive. Very useful and clear presentation - very good!
A44: Excellent. | D44: A bit too detailed - there is a discrepancy between the deep of the cardiocirculatory system and the other systems and on top of that these infections are too specific for the general porpouse. | G44: Good explanation, good discussion. Easy to understand but accurate at the same time. Both speakers (in vitro and ex vivo) were great!
A45: Very good english. Good emphasis on most important points.
A46: The same as before. Very good.

Sheet data, grafik
A1: PRACTICES | B1: Theme selection | C1: Organization | D1: Active participation | E1: Teacher readiness | F1: Practice value | G1: Syllabus | W1: LECTURES | X1: Subject-specific expertise | Y1: Style of performance | Z1: Choice of subject | AA1: Handouts
A2: Zebrafish | B2: 4 | C2: 3 | D2: 4 | E2: 3 | F2: 4 | G2: 4 | I2: Sorcímkék | J2: Átlag / Theme selection | W2: History | X2: 4 | Y2: 4 | Z2: 4 | AA2: 4
A3: Zebrafish | B3: 4 | C3: 4 | D3: 5 | E3: 5 | F3: 5 | G3: 5 | I3: Anesthesia | J3: 4.75 | W3: History | X3: 4 | Y3: 5 | Z3: 5 | AA3: 5 | AD3: Sorcímkék | AE3: Átlag / Subject-specific expertise
A4: Zebrafish | B4: 5 | C4: 5 | D4: 4 | E4: 4 | F4: 5 | G4: 4 | I4: Aseptic techniques | J4: 4.583333333 | W4: History | X4: 5 | Y4: 5 | Z4: 4 | AA4: 4 | AD4: 3Rs | AE4: 4.416666667
A5: Zebrafish | B5: 5 | C5: 4 | D5: 5 | E5: 5 | F5: 4 | I5: Behaviour | J5: 4.5 | W5: History | X5: 5 | Y5: 5 | Z5: 5 | AA5: 5 | AD5: Advanced anaesthesia | AE5: 4.583333333
A6: Zebrafish | B6: 4 | C6: 4 | D6: 4 | E6: 5 | F6: 4 | G6: 5 | I6: Langendorff | J6: 4.636363636 | W6: History | X6: 5 | Y6: 5 | Z6: 5 | AA6: 5 | AD6: Alternative methods | AE6: 4.166666667
A7: Zebrafish | B7: 4 | C7: 4 | D7: 5 | E7: 5 | F7: 5 | G7: 5 | I7: Min. inv. I. | J7: 4.666666667 | W7: History | X7: 5 | Y7: 5 | Z7: 5 | AA7: 5 | AD7: Anaesthesia and analgesia | AE7: 4.666666667
A8: Zebrafish | B8: 4 | C8: 5 | D8: 4 | E8: 4 | F8: 5 | G8: 4 | I8: Minipig preparation | J8: 4.333333333 | W8: History | X8: 5 | Y8: 4 | Z8: 5 | AA8: 5 | AD8: Behaviour | AE8: 4.5
A9: Zebrafish | B9: 4 | C9: 4 | D9: 4 | E9: 4 | F9: 3 | I9: Rat preparation | J9: 4.666666667 | W9: History | X9: 5 | Y9: 4 | Z9: 4 | AA9: 4 | AD9: Biology of large animals | AE9: 4.083333333
A10: Zebrafish | B10: 5 | C10: 4 | D10: 5 | E10: 5 | F10: 5 | I10: Restraint | J10: 4.75 | W10: History | X10: 5 | Y10: 5 | Z10: 5 | AA10: 5 | AD10: Biology of small animals | AE10: 4.333333333
A11: Zebrafish | B11: 5 | C11: 5 | D11: 5 | E11: 5 | F11: 5 | I11: Suturing | J11: 4.75 | W11: History | X11: 5 | Y11: 5 | Z11: 5 | AA11: 5 | AD11: Care and housing | AE11: 4.416666667
A12: Zebrafish | B12: 2 | C12: 2 | D12: 2 | E12: 3 | F12: 3 | G12: 2 | I12: Zebrafish | J12: 4.083333333 | W12: History | X12: 3 | Y12: 4 | Z12: 4 | AA12: 4 | AD12: Complex statistical analysis | AE12: 4.333333333
A13: Zebrafish | B13: 3 | C13: 3 | D13: 3 | E13: 3 | F13: 3 | G13: 3 | I13: Végösszeg | J13: 4.571428571 | W13: History | X13: 4 | Y13: 3 | Z13: 4 | AA13: 3 | AD13: Ethics | AE13: 4.75
A14: Restraint | B14: 4 | C14: 4 | D14: 4 | E14: 4 | F14: 4 | G14: 4 | W14: Ethics | X14: 5 | Y14: 5 | Z14: 5 | AA14: 5 | AD14: Ex vivo | AE14: 4.333333333
A15: Restraint | B15: 5 | C15: 5 | D15: 5 | E15: 5 | F15: 5 | G15: 5 | W15: Ethics | X15: 5 | Y15: 5 | Z15: 5 | AA15: 5 | AD15: Extrapolation | AE15: 4.25
A16: Restraint | B16: 5 | C16: 5 | D16: 5 | E16: 5 | F16: 5 | G16: 4 | I16: Sorcímkék | J16: Átlag / Organization | W16: Ethics | X16: 5 | Y16: 5 | Z16: 5 | AA16: 4 | AD16: Gnotobiology | AE16: 4
A17: Restraint | B17: 5 | C17: 5 | D17: 5 | E17: 5 | F17: 5 | I17: Anesthesia | J17: 4.583333333 | W17: Ethics | X17: 5 | Y17: 5 | Z17: 5 | AA17: 5 | AD17: Handling | AE17: 4.583333333
A18: Restraint | B18: 5 | C18: 5 | D18: 5 | E18: 5 | F18: 5 | G18: 5 | I18: Aseptic techniques | J18: 4.583333333 | W18: Ethics | X18: 5 | Y18: 5 | Z18: 5 | AA18: 4 | AD18: History | AE18: 4.583333333
A19: Restraint | B19: 5 | C19: 5 | D19: 5 | E19: 5 | F19: 5 | G19: 5 | I19: Behaviour | J19: 4.416666667 | W19: Ethics | X19: 5 | Y19: 5 | Z19: 5 | AA19: 5 | AD19: Housing | AE19: 4.416666667
A20: Restraint | B20: 5 | C20: 5 | D20: 5 | E20: 5 | F20: 5 | G20: 5 | I20: Langendorff | J20: 4.545454545 | W20: Ethics | X20: 5 | Y20: 4 | Z20: 5 | AA20: 5 | AD20: Inbred outbred | AE20: 4.416666667
A21: Restraint | B21: 5 | C21: 5 | D21: 5 | E21: 5 | F21: 4 | I21: Min. inv. I. | J21: 4.583333333 | W21: Ethics | X21: 4 | Y21: 4 | Z21: 4 | AA21: 4 | AD21: Interpretation of results | AE21: 4.333333333
A22: Restraint | B22: 5 | C22: 5 | D22: 5 | E22: 5 | F22: 5 | I22: Minipig preparation | J22: 4.5 | W22: Ethics | X22: 5 | Y22: 5 | Z22: 5 | AA22: 5 | AD22: Legislation | AE22: 4.416666667
A23: Restraint | B23: 4 | C23: 4 | D23: 4 | E23: 4 | F23: 4 | I23: Rat preparation | J23: 4.583333333 | W23: Ethics | X23: 5 | Y23: 5 | Z23: 5 | AA23: 5 | AD23: Licensing | AE23: 4.416666667
A24: Restraint | B24: 5 | C24: 5 | D24: 5 | E24: 5 | F24: 5 | G24: 4 | I24: Restraint | J24: 4.75 | W24: Ethics | X24: 4 | Y24: 5 | Z24: 4 | AA24: 4 | AD24: Licensing in practice | AE24: 4.25
A25: Restraint | B25: 4 | C25: 4 | D25: 3 | E25: 3 | F25: 3 | G25: 3 | I25: Suturing | J25: 4.75 | W25: Ethics | X25: 4 | Y25: 4 | Z25: 4 | AA25: 3 | AD25: Monitoring | AE25: 4.454545455
A26: Behaviour | B26: 4 | C26: 4 | D26: 4 | E26: 4 | F26: 4 | G26: 4 | I26: Zebrafish | J26: 3.916666667 | W26: Legislation | X26: 4 | Y26: 5 | Z26: 4 | AA26: 5 | AD26: Safety | AE26: 3.916666667
A27: Behaviour | B27: 5 | C27: 5 | D27: 5 | E27: 5 | F27: 5 | G27: 5 | I27: Végösszeg | J27: 4.521008403 | W27: Legislation | X27: 4 | Y27: 4 | Z27: 5 | AA27: 5 | AD27: Statistical evaluation | AE27: 4.6
A28: Behaviour | B28: 5 | C28: 5 | D28: 5 | E28: 5 | F28: 5 | G28: 4 | W28: Legislation | X28: 5 | Y28: 4 | Z28: 4 | AA28: 4 | AD28: Statistics | AE28: 4.75
A29: Behaviour | B29: 5 | C29: 5 | D29: 5 | E29: 5 | F29: 3 | W29: Legislation | X29: 3 | Y29: 2 | Z29: 4 | AA29: 4 | AD29: Surgical procedures | AE29: 4.583333333
A30: Behaviour | B30: 3 | C30: 4 | D30: 2 | E30: 5 | F30: 2 | G30: 5 | I30: Sorcímkék | J30: Átlag / Active participation | W30: Legislation | X30: 5 | Y30: 4 | Z30: 4 | AA30: 3 | AD30: Transgenic and pain | AE30: 3.916666667
A31: Behaviour | B31: 5 | C31: 5 | D31: 5 | E31: 5 | F31: 5 | G31: 5 | I31: Anesthesia | J31: 4.583333333 | W31: Legislation | X31: 5 | Y31: 5 | Z31: 5 | AA31: 5 | AD31: Translation | AE31: 4.25
A32: Behaviour | B32: 5 | C32: 5 | D32: 5 | E32: 5 | F32: 5 | G32: 5 | I32: Aseptic techniques | J32: 4.5 | W32: Legislation | X32: 5 | Y32: 4 | Z32: 5 | AA32: 5 | AD32: Zebrafish | AE32: 4.5
A33: Behaviour | B33: 5 | C33: 4 | D33: 5 | E33: 5 | F33: 4 | I33: Behaviour | J33: 4.25 | W33: Legislation | X33: 4 | Y33: 4 | Z33: 4 | AA33: 4 | AD33: Végösszeg | AE33: 4.387096774
A34: Behaviour | B34: 5 | C34: 5 | D34: 3 | E34: 5 | F34: 5 | I34: Langendorff | J34: 4.545454545 | W34: Legislation | X34: 5 | Y34: 4 | Z34: 5 | AA34: 5
A35: Behaviour | B35: 4 | C35: 4 | D35: 4 | E35: 4 | F35: 4 | I35: Min. inv. I. | J35: 4.5 | W35: Legislation | X35: 5 | Y35: 5 | Z35: 5 | AA35: 5
A36: Behaviour | B36: 5 | C36: 4 | D36: 5 | E36: 4 | F36: 5 | G36: 4 | I36: Minipig preparation | J36: 4.083333333 | W36: Legislation | X36: 4 | Y36: 2 | Z36: 4 | AA36: 4 | AD36: Sorcímkék | AE36: Átlag / Style of performance
A37: Behaviour | B37: 3 | C37: 3 | D37: 3 | E37: 3 | F37: 3 | G37: 3 | I37: Rat preparation | J37: 4.583333333 | W37: Legislation | X37: 4 | Y37: 4 | Z37: 4 | AA37: 4 | AD37: 3Rs | AE37: 3.583333333
A38: Min. inv. I. | B38: 5 | C38: 3 | D38: 3 | E38: 3 | F38: 4 | G38: 3 | I38: Restraint | J38: 4.666666667 | W38: Extrapolation | X38: 4 | Y38: 3 | Z38: 3 | AA38: 4 | AD38: Advanced anaesthesia | AE38: 4.583333333
A39: Min. inv. I. | B39: 4 | C39: 4 | D39: 5 | E39: 5 | F39: 4 | G39: 5 | I39: Suturing | J39: 4.833333333 | W39: Extrapolation | X39: 3 | Y39: 5 | Z39: 5 | AA39: 5 | AD39: Alternative methods | AE39: 3.916666667
A40: Min. inv. I. | B40: 3 | C40: 4 | D40: 4 | E40: 4 | F40: 5 | G40: 5 | I40: Zebrafish | J40: 4.166666667 | W40: Extrapolation | X40: 4 | Y40: 4 | Z40: 4 | AA40: 4 | AD40: Anaesthesia and analgesia | AE40: 4.75
A41: Min. inv. I. | B41: 5 | C41: 5 | D41: 5 | E41: 5 | F41: 5 | G41: 5 | I41: Végösszeg | J41: 4.470588235 | W41: Extrapolation | X41: 5 | Y41: 5 | Z41: 4 | AA41: 5 | AD41: Behaviour | AE41: 4.583333333
A42: Min. inv. I. | B42: 5 | C42: 5 | D42: 5 | E42: 5 | F42: 5 | G42: 5 | W42: Extrapolation | X42: 5 | Y42: 5 | Z42: 5 | AA42: 5 | AD42: Biology of large animals | AE42: 3.333333333
A43: Min. inv. I. | B43: 5 | C43: 5 | D43: 5 | E43: 5 | F43: 5 | G43: 5 | W43: Extrapolation | X43: 5 | Y43: 5 | Z43: 5 | AA43: 2 | AD43: Biology of small animals | AE43: 4.25
A44: Min. inv. I. | B44: 5 | C44: 5 | D44: 5 | E44: 5 | F44: 5 | G44: 5 | I44: Sorcímkék | J44: Átlag / Teacher readiness | W44: Extrapolation | X44: 4 | Y44: 4 | Z44: 5 | AA44: 5 | AD44: Care and housing | AE44: 4.333333333
A45: Min. inv. I. | B45: 5 | C45: 5 | D45: 4 | E45: 4 | F45: 5 | G45: 5 | I45: Anesthesia | J45: 4.666666667 | W45: Extrapolation | X45: 4 | Y45: 4 | Z45: 4 | AA45: 3 | AD45: Complex statistical analysis | AE45: 4.25
A46: Min. inv. I. | B46: 5 | C46: 5 | D46: 5 | E46: 5 | F46: 5 | I46: Aseptic techniques | J46: 4.5 | W46: Extrapolation | X46: 3 | Y46: 5 | Z46: 4 | AA46: 5 | AD46: Ethics | AE46: 4.75
A47: Min. inv. I. | B47: 5 | C47: 5 | D47: 5 | E47: 5 | F47: 5 | I47: Behaviour | J47: 4.583333333 | W47: Extrapolation | X47: 5 | Y47: 4 | Z47: 3 | AA47: 5 | AD47: Ex vivo | AE47: 4.25
A48: Min. inv. I. | B48: 5 | C48: 5 | D48: 5 | E48: 5 | F48: 5 | G48: 5 | I48: Langendorff | J48: 4.545454545 | W48: Extrapolation | X48: 5 | Y48: 5 | Z48: 4 | AA48: 5 | AD48: Extrapolation | AE48: 4.416666667
A49: Min. inv. I. | B49: 4 | C49: 4 | D49: 3 | E49: 3 | F49: 3 | G49: 3 | I49: Min. inv. I. | J49: 4.5 | W49: Extrapolation | X49: 4 | Y49: 4 | Z49: 4 | AA49: 4 | AD49: Gnotobiology | AE49: 2.916666667
A50: Anesthesia | B50: 5 | C50: 4 | D50: 4 | E50: 4 | F50: 4 | G50: 4 | I50: Minipig preparation | J50: 4.666666667 | W50: 3Rs | X50: 4 | Y50: 3 | Z50: 3 | AA50: 4 | AD50: Handling | AE50: 3.333333333
A51: Anesthesia | B51: 4 | C51: 4 | D51: 5 | E51: 5 | F51: 5 | G51: 5 | I51: Rat preparation | J51: 4.666666667 | W51: 3Rs | X51: 5 | Y51: 4 | Z51: 5 | AA51: 5 | AD51: History | AE51: 4.5
A52: Anesthesia | B52: 5 | C52: 5 | D52: 4 | E52: 4 | F52: 4 | G52: 4 | I52: Restraint | J52: 4.666666667 | W52: 3Rs | X52: 5 | Y52: 4 | Z52: 4 | AA52: 4 | AD52: Housing | AE52: 3.5
A53: Anesthesia | B53: 5 | C53: 5 | D53: 5 | E53: 5 | F53: 3 | G53: 4 | I53: Suturing | J53: 4.75 | W53: 3Rs | X53: 4 | Y53: 3 | Z53: 5 | AA53: 5 | AD53: Inbred outbred | AE53: 2.833333333
A54: Anesthesia | B54: 5 | C54: 5 | D54: 5 | E54: 5 | F54: 5 | G54: 5 | I54: Zebrafish | J54: 4.25 | W54: 3Rs | X54: 5 | Y54: 4 | Z54: 5 | AA54: 4 | AD54: Interpretation of results | AE54: 4.25
A55: Anesthesia | B55: 5 | C55: 5 | D55: 5 | E55: 5 | F55: 5 | G55: 5 | I55: Végösszeg | J55: 4.579831933 | W55: 3Rs | X55: 5 | Y55: 5 | Z55: 5 | AA55: 5 | AD55: Legislation | AE55: 3.916666667
A56: Anesthesia | B56: 5 | C56: 5 | D56: 5 | E56: 5 | F56: 5 | G56: 5 | W56: 3Rs | X56: 5 | Y56: 4 | Z56: 4 | AA56: 5 | AD56: Licensing | AE56: 3.666666667
A57: Anesthesia | B57: 5 | C57: 4 | D57: 4 | E57: 5 | F57: 5 | G57: 4 | W57: 3Rs | X57: 5 | Y57: 4 | Z57: 4 | AA57: 4 | AD57: Licensing in practice | AE57: 4.125
A58: Anesthesia | B58: 5 | C58: 5 | D58: 5 | E58: 5 | F58: 5 | I58: Sorcímkék | J58: Átlag / Practice value | W58: 3Rs | X58: 4 | Y58: 3 | Z58: 5 | AA58: 3 | AD58: Monitoring | AE58: 3.818181818
A59: Anesthesia | B59: 4 | C59: 4 | D59: 4 | E59: 4 | F59: 4 | G59: 4 | I59: Anesthesia | J59: 4.583333333 | W59: 3Rs | X59: 4 | Y59: 4 | Z59: 4 | AA59: 4 | AD59: Safety | AE59: 3.416666667
A60: Anesthesia | B60: 5 | C60: 5 | D60: 5 | E60: 5 | F60: 5 | G60: 5 | I60: Aseptic techniques | J60: 4.75 | W60: 3Rs | X60: 4 | Y60: 2 | Z60: 4 | AA60: 4 | AD60: Statistical evaluation | AE60: 4.3
A61: Anesthesia | B61: 4 | C61: 4 | D61: 4 | E61: 4 | F61: 5 | G61: 4 | I61: Behaviour | J61: 4.166666667 | W61: 3Rs | X61: 3 | Y61: 3 | Z61: 3 | AA61: 3 | AD61: Statistics | AE61: 4.583333333
A62: Aseptic techniques | B62: 5 | C62: 4 | D62: 3 | E62: 3 | F62: 4 | G62: 4 | I62: Langendorff | J62: 4.454545455 | W62: Licensing | X62: 4 | Y62: 4 | Z62: 4 | AA62: 4 | AD62: Surgical procedures | AE62: 4.583333333
A63: Aseptic techniques | B63: 4 | C63: 4 | D63: 5 | E63: 5 | F63: 5 | G63: 5 | I63: Min. inv. I. | J63: 4.666666667 | W63: Licensing | X63: 5 | Y63: 4 | Z63: 5 | AA63: 5 | AD63: Transgenic and pain | AE63: 3.916666667
A64: Aseptic techniques | B64: 4 | C64: 5 | D64: 4 | E64: 4 | F64: 5 | G64: 5 | I64: Minipig preparation | J64: 4.083333333 | W64: Licensing | X64: 4 | Y64: 3 | Z64: 4 | AA64: 4 | AD64: Translation | AE64: 4.25
A65: Aseptic techniques | B65: 5 | C65: 5 | D65: 5 | E65: 5 | F65: 5 | G65: 4 | I65: Rat preparation | J65: 4.666666667 | W65: Licensing | X65: 4 | Y65: 3 | Z65: 5 | AA65: 5 | AD65: Zebrafish | AE65: 4.083333333
A66: Aseptic techniques | B66: 5 | C66: 5 | D66: 5 | E66: 5 | F66: 5 | G66: 5 | I66: Restraint | J66: 4.583333333 | W66: Licensing | X66: 5 | Y66: 4 | Z66: 5 | AA66: 4 | AD66: Végösszeg | AE66: 4.032258065
A67: Aseptic techniques | B67: 5 | C67: 5 | D67: 5 | E67: 5 | F67: 5 | G67: 5 | I67: Suturing | J67: 4.666666667 | W67: Licensing | X67: 5 | Y67: 5 | Z67: 5 | AA67: 5
A68: Aseptic techniques | B68: 5 | C68: 5 | D68: 5 | E68: 5 | F68: 5 | G68: 5 | I68: Zebrafish | J68: 4.25 | W68: Licensing | X68: 5 | Y68: 4 | Z68: 4 | AA68: 4
A69: Aseptic techniques | B69: 4 | C69: 4 | D69: 4 | E69: 4 | F69: 5 | G69: 4 | I69: Végösszeg | J69: 4.487394958 | W69: Licensing | X69: 5 | Y69: 4 | Z69: 4 | AA69: 4 | AD69: Sorcímkék | AE69: Átlag / Choice of subject
A70: Aseptic techniques | B70: 5 | C70: 5 | D70: 5 | E70: 5 | F70: 5 | W70: Licensing | X70: 5 | Y70: 4 | Z70: 5 | AA70: 4 | AD70: 3Rs | AE70: 4.25
A71: Aseptic techniques | B71: 4 | C71: 4 | D71: 4 | E71: 4 | F71: 4 | G71: 4 | W71: Licensing | X71: 4 | Y71: 4 | Z71: 4 | AA71: 4 | AD71: Advanced anaesthesia | AE71: 4.416666667
A72: Aseptic techniques | B72: 5 | C72: 5 | D72: 5 | E72: 5 | F72: 5 | G72: 5 | I72: Sorcímkék | J72: Átlag / Syllabus | W72: Licensing | X72: 4 | Y72: 2 | Z72: 4 | AA72: 4 | AD72: Alternative methods | AE72: 3.958333333
A73: Aseptic techniques | B73: 4 | C73: 4 | D73: 4 | E73: 4 | F73: 4 | G73: 3 | I73: Anesthesia | J73: 4.454545455 | W73: Licensing | X73: 3 | Y73: 3 | Z73: 3 | AA73: 3 | AD73: Anaesthesia and analgesia | AE73: 4.75
A74: Suturing | B74: 5 | C74: 5 | D74: 5 | E74: 5 | F74: 5 | G74: 5 | I74: Aseptic techniques | J74: 4.454545455 | W74: Statistics | X74: 4 | Y74: 3 | Z74: 3 | AA74: 3 | AD74: Behaviour | AE74: 4
A75: Suturing | B75: 4 | C75: 4 | D75: 5 | E75: 5 | F75: 5 | G75: 5 | I75: Behaviour | J75: 4.375 | W75: Statistics | X75: 4 | Y75: 5 | Z75: 5 | AA75: 5 | AD75: Biology of large animals | AE75: 4.166666667
A76: Suturing | B76: 5 | C76: 5 | D76: 5 | E76: 5 | F76: 4 | G76: 4 | I76: Langendorff | J76: 4.333333333 | W76: Statistics | X76: 5 | Y76: 5 | Z76: 5 | AA76: 5 | AD76: Biology of small animals | AE76: 4.333333333
A77: Suturing | B77: 5 | C77: 5 | D77: 5 | E77: 5 | F77: 5 | G77: 4 | I77: Min. inv. I. | J77: 4.6 | W77: Statistics | X77: 5 | Y77: 5 | Z77: 5 | AA77: 4 | AD77: Care and housing | AE77: 4.25
A78: Suturing | B78: 5 | C78: 5 | D78: 5 | E78: 5 | F78: 5 | G78: 5 | I78: Minipig preparation | J78: 4.545454545 | W78: Statistics | X78: 5 | Y78: 5 | Z78: 5 | AA78: 5 | AD78: Complex statistical analysis | AE78: 4.166666667
A79: Suturing | B79: 5 | C79: 5 | D79: 5 | E79: 5 | F79: 5 | G79: 5 | I79: Rat preparation | J79: 4.545454545 | W79: Statistics | X79: 5 | Y79: 5 | Z79: 5 | AA79: 4 | AD79: Ethics | AE79: 4.75
A80: Suturing | B80: 5 | C80: 5 | D80: 5 | E80: 5 | F80: 5 | G80: 5 | I80: Restraint | J80: 4.375 | W80: Statistics | X80: 4 | Y80: 4 | Z80: 4 | AA80: 4 | AD80: Ex vivo | AE80: 4
A81: Suturing | B81: 5 | C81: 5 | D81: 5 | E81: 5 | F81: 5 | G81: 4 | I81: Suturing | J81: 4.545454545 | W81: Statistics | X81: 5 | Y81: 5 | Z81: 5 | AA81: 4 | AD81: Extrapolation | AE81: 4.166666667
A82: Suturing | B82: 5 | C82: 5 | D82: 5 | E82: 5 | F82: 5 | I82: Zebrafish | J82: 4 | W82: Statistics | X82: 5 | Y82: 5 | Z82: 5 | AA82: 5 | AD82: Gnotobiology | AE82: 3.75
A83: Suturing | B83: 4 | C83: 4 | D83: 4 | E83: 4 | F83: 4 | G83: 4 | I83: Végösszeg | J83: 4.43877551 | W83: Statistics | X83: 5 | Y83: 5 | Z83: 5 | AA83: 5 | AD83: Handling | AE83: 4.25
A84: Suturing | B84: 5 | C84: 5 | D84: 5 | E84: 5 | F84: 5 | G84: 5 | W84: Statistics | X84: 5 | Y84: 4 | Z84: 4 | AA84: 4 | AD84: History | AE84: 4.583333333
A85: Suturing | B85: 4 | C85: 4 | D85: 4 | E85: 3 | F85: 3 | G85: 4 | W85: Statistics | X85: 5 | Y85: 4 | Z85: 4 | AA85: 4 | AD85: Housing | AE85: 3.833333333
A86: Rat preparation | B86: 4 | C86: 4 | D86: 4 | E86: 4 | F86: 4 | G86: 4 | I86: Sorcímkék | J86: Átlag / Theme selection | K86: Átlag / Organization | L86: Átlag / Active participation | M86: Átlag / Teacher readiness | N86: Átlag / Practice value | O86: Átlag / Syllabus | W86: Biology of small animals | X86: 4 | Y86: 5 | Z86: 5 | AA86: 5 | AD86: Inbred outbred | AE86: 3.916666667
A87: Rat preparation | B87: 5 | C87: 5 | D87: 5 | E87: 5 | F87: 5 | G87: 5 | I87: Anesthesia | J87: 4.75 | K87: 4.583333333 | L87: 4.583333333 | M87: 4.666666667 | N87: 4.583333333 | O87: 4.454545455 | W87: Biology of small animals | X87: 5 | Y87: 5 | Z87: 5 | AA87: 4 | AD87: Interpretation of results | AE87: 4.083333333
A88: Rat preparation | B88: 5 | C88: 4 | D88: 4 | E88: 5 | F88: 5 | G88: 5 | I88: Aseptic techniques | J88: 4.583333333 | K88: 4.583333333 | L88: 4.5 | M88: 4.5 | N88: 4.75 | O88: 4.454545455 | W88: Biology of small animals | X88: 4 | Y88: 3 | Z88: 4 | AA88: 4 | AD88: Legislation | AE88: 4.416666667
A89: Rat preparation | B89: 5 | C89: 5 | D89: 5 | E89: 5 | F89: 5 | G89: 5 | I89: Behaviour | J89: 4.5 | K89: 4.416666667 | L89: 4.25 | M89: 4.583333333 | N89: 4.166666667 | O89: 4.375 | W89: Biology of small animals | X89: 5 | Y89: 5 | Z89: 5 | AA89: 5 | AD89: Licensing | AE89: 4.333333333
A90: Rat preparation | B90: 5 | C90: 5 | D90: 5 | E90: 5 | F90: 5 | G90: 5 | I90: Langendorff | J90: 4.636363636 | K90: 4.545454545 | L90: 4.545454545 | M90: 4.545454545 | N90: 4.454545455 | O90: 4.333333333 | W90: Biology of small animals | X90: 4 | Y90: 5 | Z90: 5 | AA90: 5 | AD90: Licensing in practice | AE90: 4.25
A91: Rat preparation | B91: 5 | C91: 5 | D91: 5 | E91: 5 | F91: 5 | G91: 5 | I91: Min. inv. I. | J91: 4.666666667 | K91: 4.583333333 | L91: 4.5 | M91: 4.5 | N91: 4.666666667 | O91: 4.6 | W91: Biology of small animals | X91: 5 | Y91: 5 | Z91: 5 | AA91: 5 | AD91: Monitoring | AE91: 4
A92: Rat preparation | B92: 5 | C92: 5 | D92: 5 | E92: 5 | F92: 5 | G92: 5 | I92: Minipig preparation | J92: 4.333333333 | K92: 4.5 | L92: 4.083333333 | M92: 4.666666667 | N92: 4.083333333 | O92: 4.545454545 | W92: Biology of small animals | X92: 5 | Y92: 5 | Z92: 5 | AA92: 5 | AD92: Safety | AE92: 4.083333333
A93: Rat preparation | B93: 5 | C93: 5 | D93: 5 | E93: 5 | F93: 5 | G93: 4 | I93: Rat preparation | J93: 4.666666667 | K93: 4.583333333 | L93: 4.583333333 | M93: 4.666666667 | N93: 4.666666667 | O93: 4.545454545 | W93: Biology of small animals | X93: 4 | Y93: 4 | Z93: 5 | AA93: 4 | AD93: Statistical evaluation | AE93: 4.4
A94: Rat preparation | B94: 5 | C94: 5 | D94: 5 | E94: 5 | F94: 5 | I94: Restraint | J94: 4.75 | K94: 4.75 | L94: 4.666666667 | M94: 4.666666667 | N94: 4.583333333 | O94: 4.375 | W94: Biology of small animals | X94: 5 | Y94: 5 | Z94: 2 | AA94: 5 | AD94: Statistics | AE94: 4.583333333
A95: Rat preparation | B95: 4 | C95: 4 | D95: 4 | E95: 4 | F95: 4 | G95: 4 | I95: Suturing | J95: 4.75 | K95: 4.75 | L95: 4.833333333 | M95: 4.75 | N95: 4.666666667 | O95: 4.545454545 | W95: Biology of small animals | X95: 3 | Y95: 2 | Z95: 4 | AA95: 4 | AD95: Surgical procedures | AE95: 4.583333333
A96: Rat preparation | B96: 5 | C96: 5 | D96: 5 | E96: 5 | F96: 5 | G96: 5 | I96: Zebrafish | J96: 4.083333333 | K96: 3.916666667 | L96: 4.166666667 | M96: 4.25 | N96: 4.25 | O96: 4 | W96: Biology of small animals | X96: 4 | Y96: 4 | Z96: 4 | AA96: 4 | AD96: Transgenic and pain | AE96: 4.166666667
A97: Rat preparation | B97: 3 | C97: 3 | D97: 3 | E97: 3 | F97: 3 | G97: 3 | I97: Végösszeg | J97: 4.571428571 | K97: 4.521008403 | L97: 4.470588235 | M97: 4.579831933 | N97: 4.487394958 | O97: 4.43877551 | W97: Biology of small animals | X97: 4 | Y97: 3 | Z97: 3 | AA97: 3 | AD97: Translation | AE97: 4.083333333
A98: Minipig preparation | B98: 4 | C98: 4 | D98: 4 | E98: 4 | F98: 4 | G98: 4 | W98: Biology of large animals | X98: 4 | Y98: 5 | Z98: 5 | AA98: 5 | AD98: Zebrafish | AE98: 4.333333333
A99: Minipig preparation | B99: 5 | C99: 5 | D99: 5 | E99: 5 | F99: 5 | G99: 5 | W99: Biology of large animals | X99: 4 | Y99: 5 | Z99: 5 | AA99: 4 | AD99: Végösszeg | AE99: 4.236070381
A100: Minipig preparation | B100: 5 | C100: 5 | D100: 5 | E100: 5 | F100: 5 | G100: 5 | W100: Biology of large animals | X100: 3 | Y100: 4 | Z100: 2 | AA100: 4
A101: Minipig preparation | B101: 5 | C101: 5 | D101: 4 | E101: 5 | F101: 3 | G101: 5 | W101: Biology of large animals | X101: 5 | Y101: 2 | Z101: 5 | AA101: 5
A102: Minipig preparation | B102: 5 | C102: 5 | D102: 2 | E102: 5 | F102: 4 | G102: 5 | W102: Biology of large animals | X102: 5 | Y102: 4 | Z102: 5 | AA102: 5 | AD102: Sorcímkék | AE102: Átlag / Handouts
A103: Minipig preparation | B103: 3 | C103: 4 | D103: 4 | E103: 5 | F103: 4 | G103: 5 | W103: Biology of large animals | X103: 5 | Y103: 3 | Z103: 5 | AA103: 5 | AD103: 3Rs | AE103: 4.166666667
A104: Minipig preparation | B104: 5 | C104: 5 | D104: 5 | E104: 5 | F104: 5 | G104: 5 | W104: Biology of large animals | X104: 4 | Y104: 4 | Z104: 4 | AA104: 4 | AD104: Advanced anaesthesia | AE104: 4.75
A105: Minipig preparation | B105: 5 | C105: 5 | D105: 5 | E105: 5 | F105: 5 | G105: 4 | W105: Biology of large animals | X105: 4 | Y105: 4 | Z105: 5 | AA105: 4 | AD105: Alternative methods | AE105: 3.666666667
A106: Minipig preparation | B106: 5 | C106: 5 | D106: 5 | E106: 5 | F106: 5 | W106: Biology of large animals | X106: 5 | Y106: 2 | Z106: 3 | AA106: 3 | AD106: Anaesthesia and analgesia | AE106: 4.666666667
A107: Minipig preparation | B107: 4 | C107: 4 | D107: 4 | E107: 4 | F107: 4 | G107: 4 | W107: Biology of large animals | X107: 3 | Y107: 2 | Z107: 4 | AA107: 4 | AD107: Behaviour | AE107: 4.166666667
A108: Minipig preparation | B108: 3 | C108: 4 | D108: 3 | E108: 5 | F108: 2 | G108: 5 | W108: Biology of large animals | X108: 3 | Y108: 2 | Z108: 4 | AA108: 4 | AD108: Biology of large animals | AE108: 4.166666667
A109: Minipig preparation | B109: 3 | C109: 3 | D109: 3 | E109: 3 | F109: 3 | G109: 3 | W109: Biology of large animals | X109: 4 | Y109: 3 | Z109: 3 | AA109: 3 | AD109: Biology of small animals | AE109: 4.416666667
A110: Langendorff | B110: 4 | C110: 4 | D110: 4 | E110: 4 | F110: 4 | G110: 4 | W110: Behaviour | X110: 5 | Y110: 4 | Z110: 4 | AA110: 4 | AD110: Care and housing | AE110: 4.25
A111: Langendorff | B111: 5 | C111: 5 | D111: 5 | E111: 5 | F111: 4 | G111: 5 | W111: Behaviour | X111: 5 | Y111: 5 | Z111: 5 | AA111: 5 | AD111: Complex statistical analysis | AE111: 3.916666667
A112: Langendorff | B112: 4 | C112: 3 | D112: 3 | E112: 3 | F112: 4 | G112: 4 | W112: Behaviour | X112: 4 | Y112: 5 | Z112: 4 | AA112: 4 | AD112: Ethics | AE112: 4.5
A113: Langendorff | B113: 5 | C113: 5 | D113: 5 | E113: 5 | F113: 4 | G113: 4 | W113: Behaviour | X113: 5 | Y113: 5 | Z113: 3 | AA113: 5 | AD113: Ex vivo | AE113: 3.916666667
A114: Langendorff | B114: 5 | C114: 5 | D114: 5 | E114: 5 | F114: 5 | G114: 5 | W114: Behaviour | X114: 4 | Y114: 4 | Z114: 4 | AA114: 4 | AD114: Extrapolation | AE114: 4.333333333
A115: Langendorff | W115: Behaviour | X115: 5 | Y115: 5 | Z115: 5 | AA115: 5 | AD115: Gnotobiology | AE115: 3.75
A116: Langendorff | B116: 5 | C116: 5 | D116: 5 | E116: 5 | F116: 5 | G116: 5 | W116: Behaviour | X116: 4 | Y116: 4 | Z116: 4 | AA116: 4 | AD116: Handling | AE116: 4.083333333
A117: Langendorff | B117: 5 | C117: 5 | D117: 5 | E117: 5 | F117: 5 | G117: 4 | W117: Behaviour | X117: 5 | Y117: 4 | Z117: 4 | AA117: 4 | AD117: History | AE117: 4.5
A118: Langendorff | B118: 5 | C118: 5 | D118: 5 | E118: 5 | F118: 5 | W118: Behaviour | X118: 5 | Y118: 5 | Z118: 5 | AA118: 5 | AD118: Housing | AE118: 3.5
A119: Langendorff | B119: 5 | C119: 5 | D119: 5 | E119: 5 | F119: 5 | W119: Behaviour | X119: 4 | Y119: 5 | Z119: 4 | AA119: 4 | AD119: Inbred outbred | AE119: 3.583333333
A120: Langendorff | B120: 5 | C120: 5 | D120: 5 | E120: 5 | F120: 5 | G120: 5 | W120: Behaviour | X120: 3 | Y120: 5 | Z120: 3 | AA120: 3 | AD120: Interpretation of results | AE120: 4.166666667
A121: Langendorff | B121: 3 | C121: 3 | D121: 3 | E121: 3 | F121: 3 | G121: 3 | W121: Behaviour | X121: 5 | Y121: 4 | Z121: 3 | AA121: 3 | AD121: Legislation | AE121: 4.416666667
W122: Handling | X122: 5 | Y122: 4 | Z122: 5 | AA122: 5 | AD122: Licensing | AE122: 4.166666667
W123: Handling | X123: 5 | Y123: 5 | Z123: 5 | AA123: 4 | AD123: Licensing in practice | AE123: 4.125
W124: Handling | X124: 5 | Y124: 5 | Z124: 5 | AA124: 5 | AD124: Monitoring | AE124: 4
W125: Handling | X125: 5 | Y125: 2 | Z125: 5 | AA125: 5 | AD125: Safety | AE125: 4
W126: Handling | X126: 5 | Y126: 4 | Z126: 5 | AA126: 4 | AD126: Statistical evaluation | AE126: 4
W127: Handling | X127: 5 | Y127: 3 | Z127: 5 | AA127: 5 | AD127: Statistics | AE127: 4.333333333
W128: Handling | X128: 4 | Y128: 4 | Z128: 4 | AA128: 4 | AD128: Surgical procedures | AE128: 4.666666667
W129: Handling | X129: 5 | Y129: 4 | Z129: 4 | AA129: 4 | AD129: Transgenic and pain | AE129: 3.916666667
W130: Handling | X130: 5 | Y130: 2 | Z130: 3 | AA130: 3 | AD130: Translation | AE130: 4.333333333
W131: Handling | X131: 4 | Y131: 2 | Z131: 4 | AA131: 3 | AD131: Zebrafish | AE131: 4.25
W132: Handling | X132: 3 | Y132: 2 | Z132: 3 | AA132: 4 | AD132: Végösszeg | AE132: 4.164222874
W133: Handling | X133: 4 | Y133: 3 | Z133: 3 | AA133: 3
W134: Zebrafish | X134: 5 | Y134: 5 | Z134: 5 | AA134: 5
W135: Zebrafish | X135: 5 | Y135: 5 | Z135: 5 | AA135: 5 | AD135: Sorcímkék | AE135: Átlag / Subject-specific expertise | AF135: Átlag / Style of performance | AG135: Átlag / Choice of subject | AH135: Átlag / Handouts
W136: Zebrafish | X136: 4 | Y136: 3 | Z136: 4 | AA136: 4 | AD136: 3Rs | AE136: 4.416666667 | AF136: 3.583333333 | AG136: 4.25 | AH136: 4.166666667
W137: Zebrafish | X137: 5 | Y137: 5 | Z137: 5 | AA137: 5 | AD137: Advanced anaesthesia | AE137: 4.583333333 | AF137: 4.583333333 | AG137: 4.416666667 | AH137: 4.75
W138: Zebrafish | X138: 4 | Y138: 4 | Z138: 4 | AA138: 4 | AD138: Alternative methods | AE138: 4.166666667 | AF138: 3.916666667 | AG138: 3.958333333 | AH138: 3.666666667
W139: Zebrafish | X139: 5 | Y139: 5 | Z139: 5 | AA139: 5 | AD139: Anaesthesia and analgesia | AE139: 4.666666667 | AF139: 4.75 | AG139: 4.75 | AH139: 4.666666667
W140: Zebrafish | X140: 5 | Y140: 4 | Z140: 4 | AA140: 4 | AD140: Behaviour | AE140: 4.5 | AF140: 4.583333333 | AG140: 4 | AH140: 4.166666667
W141: Zebrafish | X141: 5 | Y141: 5 | Z141: 4 | AA141: 4 | AD141: Biology of large animals | AE141: 4.083333333 | AF141: 3.333333333 | AG141: 4.166666667 | AH141: 4.166666667
W142: Zebrafish | X142: 5 | Y142: 2 | Z142: 5 | AA142: 4 | AD142: Biology of small animals | AE142: 4.333333333 | AF142: 4.25 | AG142: 4.333333333 | AH142: 4.416666667
W143: Zebrafish | X143: 4 | Y143: 4 | Z143: 5 | AA143: 4 | AD143: Care and housing | AE143: 4.416666667 | AF143: 4.333333333 | AG143: 4.25 | AH143: 4.25
W144: Zebrafish | X144: 4 | Y144: 4 | Z144: 3 | AA144: 4 | AD144: Complex statistical analysis | AE144: 4.333333333 | AF144: 4.25 | AG144: 4.166666667 | AH144: 3.916666667
W145: Zebrafish | X145: 3 | Y145: 3 | Z145: 3 | AA145: 3 | AD145: Ethics | AE145: 4.75 | AF145: 4.75 | AG145: 4.75 | AH145: 4.5
W146: Gnotobiology | X146: 3 | Y146: 2 | Z146: 2 | AA146: 2 | AD146: Ex vivo | AE146: 4.333333333 | AF146: 4.25 | AG146: 4 | AH146: 3.916666667
W147: Gnotobiology | X147: 3 | Y147: 4 | Z147: 4 | AA147: 5 | AD147: Extrapolation | AE147: 4.25 | AF147: 4.416666667 | AG147: 4.166666667 | AH147: 4.333333333
W148: Gnotobiology | X148: 4 | Y148: 3 | Z148: 4 | AA148: 4 | AD148: Gnotobiology | AE148: 4 | AF148: 2.916666667 | AG148: 3.75 | AH148: 3.75
W149: Gnotobiology | X149: 5 | Y149: 4 | Z149: 5 | AA149: 5 | AD149: Handling | AE149: 4.583333333 | AF149: 3.333333333 | AG149: 4.25 | AH149: 4.083333333
W150: Gnotobiology | X150: 5 | Y150: 3 | Z150: 5 | AA150: 3 | AD150: History | AE150: 4.583333333 | AF150: 4.5 | AG150: 4.583333333 | AH150: 4.5
W151: Gnotobiology | X151: 3 | Y151: 1 | Z151: 3 | AA151: 4 | AD151: Housing | AE151: 4.416666667 | AF151: 3.5 | AG151: 3.833333333 | AH151: 3.5
W152: Gnotobiology | X152: 4 | Y152: 4 | Z152: 4 | AA152: 4 | AD152: Inbred outbred | AE152: 4.416666667 | AF152: 2.833333333 | AG152: 3.916666667 | AH152: 3.583333333
W153: Gnotobiology | X153: 5 | Y153: 4 | Z153: 4 | AA153: 4 | AD153: Interpretation of results | AE153: 4.333333333 | AF153: 4.25 | AG153: 4.083333333 | AH153: 4.166666667
W154: Gnotobiology | X154: 5 | Y154: 3 | Z154: 5 | AA154: 4 | AD154: Legislation | AE154: 4.416666667 | AF154: 3.916666667 | AG154: 4.416666667 | AH154: 4.416666667
W155: Gnotobiology | X155: 5 | Y155: 4 | Z155: 4 | AA155: 4 | AD155: Licensing | AE155: 4.416666667 | AF155: 3.666666667 | AG155: 4.333333333 | AH155: 4.166666667
W156: Gnotobiology | X156: 3 | Y156: 2 | Z156: 2 | AA156: 3 | AD156: Licensing in practice | AE156: 4.25 | AF156: 4.125 | AG156: 4.25 | AH156: 4.125
W157: Gnotobiology | X157: 3 | Y157: 1 | Z157: 3 | AA157: 3 | AD157: Monitoring | AE157: 4.454545455 | AF157: 3.818181818 | AG157: 4 | AH157: 4
W158: Inbred outbred | X158: 3 | Y158: 2 | Z158: 2 | AA158: 2 | AD158: Safety | AE158: 3.916666667 | AF158: 3.416666667 | AG158: 4.083333333 | AH158: 4
W159: Inbred outbred | X159: 5 | Y159: 4 | Z159: 5 | AA159: 5 | AD159: Statistical evaluation | AE159: 4.6 | AF159: 4.3 | AG159: 4.4 | AH159: 4
W160: Inbred outbred | X160: 4 | Y160: 3 | Z160: 4 | AA160: 4 | AD160: Statistics | AE160: 4.75 | AF160: 4.583333333 | AG160: 4.583333333 | AH160: 4.333333333
W161: Inbred outbred | X161: 4 | Y161: 3 | Z161: 5 | AA161: 5 | AD161: Surgical procedures | AE161: 4.583333333 | AF161: 4.583333333 | AG161: 4.583333333 | AH161: 4.666666667
W162: Inbred outbred | X162: 5 | Y162: 1 | Z162: 4 | AA162: 1 | AD162: Transgenic and pain | AE162: 3.916666667 | AF162: 3.916666667 | AG162: 4.166666667 | AH162: 3.916666667
W163: Inbred outbred | X163: 3 | Y163: 1 | Z163: 3 | AA163: 4 | AD163: Translation | AE163: 4.25 | AF163: 4.25 | AG163: 4.083333333 | AH163: 4.333333333
W164: Inbred outbred | X164: 4 | Y164: 3 | Z164: 3 | AA164: 4 | AD164: Zebrafish | AE164: 4.5 | AF164: 4.083333333 | AG164: 4.333333333 | AH164: 4.25
W165: Inbred outbred | X165: 5 | Y165: 4 | Z165: 4 | AA165: 4 | AD165: Végösszeg | AE165: 4.387096774 | AF165: 4.032258065 | AG165: 4.236070381 | AH165: 4.164222874
W166: Inbred outbred | X166: 5 | Y166: 2 | Z166: 4 | AA166: 2
W167: Inbred outbred | X167: 5 | Y167: 4 | Z167: 5 | AA167: 3
W168: Inbred outbred | X168: 5 | Y168: 3 | Z168: 5 | AA168: 5
W169: Inbred outbred | X169: 5 | Y169: 4 | Z169: 3 | AA169: 4
W170: Care and housing | X170: 4 | Y170: 3 | Z170: 3 | AA170: 3
W171: Care and housing | X171: 5 | Y171: 5 | Z171: 5 | AA171: 5
W172: Care and housing | X172: 4 | Y172: 4 | Z172: 3 | AA172: 5
W173: Care and housing | X173: 5 | Y173: 5 | Z173: 5 | AA173: 5
W174: Care and housing | X174: 4 | Y174: 5 | Z174: 5 | AA174: 4
W175: Care and housing | X175: 5 | Y175: 5 | Z175: 5 | AA175: 5
W176: Care and housing | X176: 4 | Y176: 5 | Z176: 5 | AA176: 5
W177: Care and housing | X177: 5 | Y177: 4 | Z177: 4 | AA177: 4
W178: Care and housing | X178: 4 | Y178: 3 | Z178: 4 | AA178: 3
W179: Care and housing | X179: 5 | Y179: 5 | Z179: 5 | AA179: 5
W180: Care and housing | X180: 4 | Y180: 5 | Z180: 4 | AA180: 4
W181: Care and housing | X181: 4 | Y181: 3 | Z181: 3 | AA181: 3
W182: Housing | X182: 4 | Y182: 4 | Z182: 3 | AA182: 3
W183: Housing | X183: 5 | Y183: 5 | Z183: 5 | AA183: 5
W184: Housing | X184: 5 | Y184: 4 | Z184: 4 | AA184: 4
W185: Housing | X185: 5 | Y185: 3 | Z185: 5 | AA185: 4
W186: Housing | X186: 4 | Y186: 1 | Z186: 4 | AA186: 1
W187: Housing | X187: 5 | Y187: 5 | Z187: 5 | AA187: 5
W188: Housing | X188: 4 | Y188: 4 | Z188: 4 | AA188: 4
W189: Housing | X189: 5 | Y189: 4 | Z189: 4 | AA189: 4
W190: Housing | X190: 5 | Y190: 2 | Z190: 1 | AA190: 2
W191: Housing | X191: 4 | Y191: 3 | Z191: 4 | AA191: 3
W192: Housing | X192: 4 | Y192: 4 | Z192: 4 | AA192: 4
W193: Housing | X193: 3 | Y193: 3 | Z193: 3 | AA193: 3
W194: Transgenic and pain | X194: 3 | Y194: 3 | Z194: 3 | AA194: 3
W195: Transgenic and pain | X195: 4 | Y195: 4 | Z195: 4 | AA195: 5
W196: Transgenic and pain | X196: 5 | Y196: 4 | Z196: 4 | AA196: 4
W197: Transgenic and pain | X197: 4 | Y197: 5 | Z197: 5 | AA197: 5
W198: Transgenic and pain | X198: 3 | Y198: 3 | Z198: 4 | AA198: 3
W199: Transgenic and pain | X199: 3 | Y199: 4 | Z199: 4 | AA199: 4
W200: Transgenic and pain | X200: 4 | Y200: 4 | Z200: 4 | AA200: 4
... 149 more rows
